Workbook

Sheet Read Me First
B2: Intelligent Cabinets configurator
B3: Note: Latest version of this downloadable Configurator is stored on Solutions Pathway
B5: Preparation
B7: Examine the "Cabinet Features" Sheet to understand the Cabinets hardware features
B8: The "Cabinet Dimensions" Sheet provides images of Cabinet size options and dimension details.
B9: Read the "AMS-Features" Sheet to get an understanding of what the Access Management System features and benefits are.
B11: Data Input and Preparing your quote
B13: Step 1: | C13: Enter key customer details: Quantity of Devices, Region and choose Device type and Charger
B14: Step 2: | C14: Enter Zebra Access Management System (ZAMS) requirements
C15: Choose other options: Cradle Locks, Stadium Shelves, Cabinet Base unit
B16: Step 3: | C16: Use the Configurator Tool to generate a SKU list to create your quote
B17: Step 4: | C17: Ensure Shipping is quoted
C18: For Zebra shipping quotes, request via PS Bid & Quote
B19: Step 5: | C19: Add services required for installation / Deployment.
C20: For Zebra PS quotes, request via PS Bid and Quote (with their install quick-quote tool)
B22: The configurator will automatically update associated options and recommendation information
B24: Recommended Configuration
B26: The recommended configuration is shown in the dark grey box:
B27: Alternative considerations and configuration are shown in the boxes below.
B29: If you require support with alternative configurations, including multiple device types per cabinet, please contact your Zebra Account Manager or Solution Sales Specialist
B31: Preparing your quote: Bill Of Materials and SKU List
B33: A Bill Of Materials (BOM) is generated, including SKUs and quantities. This information can be used to generate a quote using Partner Gateway / Solution Pathway.
B37: IC Cabinet Configurator V1

Sheet Device_Cabinet_Data (hidden)
N1: 9 | O1: 55 | P1: 60
A2: Table 813
A3: 1 | B3: 2 | C3: 3 | D3: 4 | E3: 5 | F3: 6 | G3: 7 | H3: 8 | I3: 9 | J3: 10 | K3: 11 | L3: 12 | M3: 13 | N3: 14 | O3: 15 | P3: 16 | Q3: 17 | R3: 18 | S3: 19 | T3: 20 | U3: 21 | V3: 22 | W3: 23 | X3: 24 | Y3: 25 | Z3: 26 | AA3: 27 | AB3: 28 | AC3: 29 | AD3: 30 | AE3: 31 | AF3: 32 | AG3: 33 | AH3: 34
A4: Device | B4: Cradle Lock Compatible | C4: Unit Value | D4: Toaster Option | E4: Devices Per Cradle | F4: Device Depth | G4: Compact CL | H4: Compact No CL | I4: Small CL | J4: Small No CL | K4: Midi CL | L4: Midi No CL | M4: Large CL | N4: Large No CL | O4: X-Large CL | P4: X-Large No CL | Q4: Extreme CL | R4: Extreme No CL | S4: Row Value | T4: Stadium Compatible | U4: Extra Shelf | V4: Cradle Lock | W4: Cradle Lock - Toaster | X4: Cradle w/Toaster | Y4: Devices with Toaster | Z4: Pistol Grip Angle | AA4: Pistol Grip Straight | AB4: Devices per layer | AC4: Aux Bracket Rqd | AD4: Aux € Bracket Price | AE4: Aux £ Bracket Price | AF4: Aux $ Bracket Price | AG4: AMS Compatible | AH4: Shared Cradle
A5: None | B5: 0 | C5: 0 | D5: 0 | E5: 0 | F5: 0 | G5: 0 | H5: 0 | I5: 0 | J5: 0 | K5: 0 | L5: 0 | M5: 0 | N5: 0 | O5: 0 | P5: 0 | Q5: 0 | R5: 0 | S5: 0 | T5: 0 | U5: 0 | X5: 0 | Y5: 0 | Z5: 0 | AA5: 0 | AB5: 0 | AG5: 0 | AH5: 0
A6: EC30 | B6: 0 | C6: 5 | D6: 0 | E6: 10 | F6: 1 | G6: 10 | H6: 10 | I6: 40 | J6: 40 | K6: 60 | L6: 60 | M6: 100 | N6: 100 | O6: 120 | P6: 120 | Q6: 240 | R6: 240 | S6: 1 | T6: 1 | U6: 1 | X6: 0 | Y6: 0 | Z6: 0 | AA6: 0 | AB6: =Table813[[#This Row],[Devices Per Cradle]]*(T6+1) -> 20 | AG6: 1 | AH6: 1
A7: EC50 | B7: 0 | C7: 5 | D7: 0 | E7: 5 | F7: 1 | G7: 5 | H7: 5 | I7: 20 | J7: 20 | K7: 30 | L7: 30 | M7: 50 | N7: 50 | O7: 60 | P7: 60 | Q7: 120 | R7: 120 | S7: 2 | T7: 1 | U7: 1 | X7: 0 | Y7: 0 | Z7: 1 | AA7: 0 | AB7: =Table813[[#This Row],[Devices Per Cradle]]*(T7+1) -> 10 | AG7: 1 | AH7: 1
A8: EC55 | B8: 0 | C8: 5 | D8: 0 | E8: 5 | F8: 1 | G8: 5 | H8: 5 | I8: 20 | J8: 20 | K8: 30 | L8: 30 | M8: 50 | N8: 50 | O8: 60 | P8: 60 | Q8: 120 | R8: 120 | S8: 3 | T8: 1 | U8: 1 | X8: 0 | Y8: 0 | Z8: 1 | AA8: 0 | AB8: =Table813[[#This Row],[Devices Per Cradle]]*(T8+1) -> 10 | AG8: 1 | AH8: 1
A9: TC20 | B9: 1 | C9: 5 | D9: 0 | E9: 5 | F9: 1 | G9: 5 | H9: 5 | I9: 20 | J9: 20 | K9: 25 | L9: 30 | M9: 45 | N9: 50 | O9: 50 | P9: 60 | Q9: 100 | R9: 120 | S9: 4 | T9: 1 | U9: 1 | V9: CS-CRD-LOC-TC2 | X9: 0 | Y9: 0 | Z9: 0 | AA9: 1 | AB9: =Table813[[#This Row],[Devices Per Cradle]]*(T9+1) -> 10 | AG9: 1 | AH9: 1
A10: TC25 | B10: 1 | C10: 5 | D10: 0 | E10: 5 | F10: 1 | G10: 5 | H10: 5 | I10: 20 | J10: 20 | K10: 25 | L10: 30 | M10: 45 | N10: 50 | O10: 50 | P10: 60 | Q10: 100 | R10: 120 | S10: 5 | T10: 1 | U10: 1 | V10: CS-CRD-LOC-TC2 | X10: 0 | Y10: 0 | Z10: 0 | AA10: 1 | AB10: =Table813[[#This Row],[Devices Per Cradle]]*(T10+1) -> 10 | AG10: 1 | AH10: 1
A11: TC21 | B11: 1 | C11: 5 | D11: 1 | E11: 5 | F11: 1 | G11: 5 | H11: 5 | I11: 20 | J11: 20 | K11: 25 | L11: 30 | M11: 35 | N11: 40 | O11: 40 | P11: 50 | Q11: 80 | R11: 100 | S11: 6 | T11: 1 | U11: 0 | V11: CS-CRD-LOC-TC2 | X11: 1 | Y11: 4 | AB11: =Table813[[#This Row],[Devices Per Cradle]]*(T11+1) -> 10 | AG11: 1 | AH11: 1
A12: TC26 | B12: 1 | C12: 5 | D12: 1 | E12: 5 | F12: 1 | G12: 5 | H12: 5 | I12: 20 | J12: 20 | K12: 25 | L12: 30 | M12: 35 | N12: 40 | O12: 40 | P12: 50 | Q12: 80 | R12: 100 | S12: 7 | T12: 1 | U12: 0 | V12: CS-CRD-LOC-TC2 | X12: 1 | Y12: 4 | AB12: =Table813[[#This Row],[Devices Per Cradle]]*(T12+1) -> 10 | AG12: 1 | AH12: 1
A13: TC50 | B13: 1 | C13: 5 | D13: 1 | E13: 5 | F13: 1 | G13: 5 | H13: 5 | I13: 20 | J13: 20 | K13: 25 | L13: 30 | M13: 35 | N13: 40 | O13: 40 | P13: 50 | Q13: 80 | R13: 100 | S13: 8 | T13: 1 | U13: 0 | V13: CS-CRD-LOC-TC5 | W13: CS-CRD-LOC-TC5-T | X13: 1 | Y13: 4 | AB13: =Table813[[#This Row],[Devices Per Cradle]]*(T13+1) -> 10 | AG13: 1 | AH13: 1
A14: TC51 | B14: 1 | C14: 5 | D14: 1 | E14: 5 | F14: 1 | G14: 5 | H14: 5 | I14: 20 | J14: 20 | K14: 25 | L14: 30 | M14: 35 | N14: 40 | O14: 40 | P14: 50 | Q14: 80 | R14: 100 | S14: 9 | T14: 1 | U14: 0 | V14: CS-CRD-LOC-TC5 | W14: CS-CRD-LOC-TC5-T | X14: 1 | Y14: 4 | AB14: =Table813[[#This Row],[Devices Per Cradle]]*(T14+1) -> 10 | AG14: 1 | AH14: 1
A15: TC52 | B15: 1 | C15: 5 | D15: 1 | E15: 5 | F15: 1 | G15: 5 | H15: 5 | I15: 20 | J15: 20 | K15: 25 | L15: 30 | M15: 35 | N15: 40 | O15: 40 | P15: 50 | Q15: 80 | R15: 100 | S15: 9 | T15: 1 | U15: 0 | V15: CS-CRD-LOC-TC5 | W15: CS-CRD-LOC-TC5-T | X15: 1 | Y15: 4 | AB15: =Table813[[#This Row],[Devices Per Cradle]]*(T15+1) -> 10 | AG15: 1 | AH15: 1
A16: TC56 | B16: 1 | C16: 5 | D16: 1 | E16: 5 | F16: 1 | G16: 5 | H16: 5 | I16: 20 | J16: 20 | K16: 25 | L16: 30 | M16: 35 | N16: 40 | O16: 40 | P16: 50 | Q16: 80 | R16: 100 | S16: 10 | T16: 1 | U16: 0 | V16: CS-CRD-LOC-TC5 | W16: CS-CRD-LOC-TC5-T | X16: 1 | Y16: 4 | AB16: =Table813[[#This Row],[Devices Per Cradle]]*(T16+1) -> 10 | AG16: 1 | AH16: 1
A17: TC57 | B17: 1 | C17: 5 | D17: 1 | E17: 5 | F17: 1 | G17: 5 | H17: 5 | I17: 20 | J17: 20 | K17: 25 | L17: 30 | M17: 35 | N17: 40 | O17: 40 | P17: 50 | Q17: 80 | R17: 100 | S17: 11 | T17: 1 | U17: 0 | V17: CS-CRD-LOC-TC5 | W17: CS-CRD-LOC-TC5-T | X17: 1 | Y17: 4 | AB17: =Table813[[#This Row],[Devices Per Cradle]]*(T17+1) -> 10 | AG17: 1 | AH17: 1
A18: TC70 | B18: 1 | C18: 5 | D18: 1 | E18: 5 | F18: 1 | G18: 5 | H18: 5 | I18: 20 | J18: 20 | K18: 25 | L18: 30 | M18: 35 | N18: 40 | O18: 40 | P18: 50 | Q18: 80 | R18: 100 | S18: 12 | T18: 1 | U18: 0 | V18: CS-CRD-LOC-TC7 | W18: CS-CRD-LOC-TC7-T | X18: 1 | Y18: 4 | AB18: =Table813[[#This Row],[Devices Per Cradle]]*(T18+1) -> 10 | AG18: 1 | AH18: 1
A19: TC72 | B19: 1 | C19: 5 | D19: 1 | E19: 5 | F19: 1 | G19: 5 | H19: 5 | I19: 20 | J19: 20 | K19: 25 | L19: 30 | M19: 35 | N19: 40 | O19: 40 | P19: 50 | Q19: 80 | R19: 100 | S19: 13 | T19: 1 | U19: 0 | V19: CS-CRD-LOC-TC7 | W19: CS-CRD-LOC-TC7-T | X19: 1 | Y19: 4 | AB19: =Table813[[#This Row],[Devices Per Cradle]]*(T19+1) -> 10 | AG19: 1 | AH19: 1
A20: TC75 | B20: 1 | C20: 5 | D20: 1 | E20: 5 | F20: 1 | G20: 5 | H20: 5 | I20: 20 | J20: 20 | K20: 25 | L20: 30 | M20: 35 | N20: 40 | O20: 40 | P20: 50 | Q20: 80 | R20: 100 | S20: 14 | T20: 1 | U20: 0 | V20: CS-CRD-LOC-TC7 | W20: CS-CRD-LOC-TC7-T | X20: 1 | Y20: 4 | AB20: =Table813[[#This Row],[Devices Per Cradle]]*(T20+1) -> 10 | AG20: 1 | AH20: 1
A21: TC77 | B21: 1 | C21: 5 | D21: 1 | E21: 5 | F21: 1 | G21: 5 | H21: 5 | I21: 20 | J21: 20 | K21: 25 | L21: 30 | M21: 35 | N21: 40 | O21: 40 | P21: 50 | Q21: 80 | R21: 100 | S21: 15 | T21: 1 | U21: 0 | V21: CS-CRD-LOC-TC7 | W21: CS-CRD-LOC-TC7-T | X21: 1 | Y21: 4 | AB21: =Table813[[#This Row],[Devices Per Cradle]]*(T21+1) -> 10 | AG21: 1 | AH21: 1
A22: TC8000 | B22: 0 | C22: 5 | D22: 1 | E22: 5 | F22: 2 | G22: 0 | H22: 0 | I22: 15 | J22: 15 | K22: 20 | L22: 20 | M22: 25 | N22: 25 | O22: 30 | P22: 30 | Q22: 60 | R22: 60 | S22: 16 | T22: 0 | U22: 1 | X22: 1 | Y22: 4 | AB22: =Table813[[#This Row],[Devices Per Cradle]]*(T22+1) -> 5 | AC22: BRKT-SCRD-MSDK-01 | AD22: 89 | AE22: 78.9 | AF22: 112 | AG22: 1 | AH22: 1
A23: TC8300 | B23: 0 | C23: 5 | D23: 1 | E23: 5 | F23: 2 | G23: 0 | H23: 0 | I23: 15 | J23: 15 | K23: 20 | L23: 20 | M23: 25 | N23: 25 | O23: 30 | P23: 30 | Q23: 60 | R23: 60 | S23: 17 | T23: 0 | U23: 1 | X23: 1 | Y23: 4 | AB23: =Table813[[#This Row],[Devices Per Cradle]]*(T23+1) -> 5 | AC23: BRKT-SCRD-MSDK-01 | AD23: 89 | AE23: 78.9 | AF23: 112 | AG23: 1 | AH23: 1
A24: MC2200 | B24: 0 | C24: 5 | D24: 1 | E24: 5 | F24: 1 | G24: 5 | H24: 5 | I24: 15 | J24: 15 | K24: 15 | L24: 15 | M24: 20 | N24: 20 | O24: 25 | P24: 25 | Q24: 50 | R24: 50 | S24: 18 | T24: 0 | U24: 0 | X24: 1 | Y24: 4 | Z24: 1 | AB24: =Table813[[#This Row],[Devices Per Cradle]]*(T24+1) -> 5 | AG24: 1 | AH24: 1
A25: MC2700 | B25: 0 | C25: 5 | D25: 1 | E25: 5 | F25: 1 | G25: 5 | H25: 5 | I25: 15 | J25: 15 | K25: 15 | L25: 15 | M25: 20 | N25: 20 | O25: 25 | P25: 25 | Q25: 50 | R25: 50 | S25: 18 | T25: 0 | U25: 0 | X25: 1 | Y25: 4 | Z25: 1 | AB25: =Table813[[#This Row],[Devices Per Cradle]]*(T25+1) -> 5 | AG25: 1 | AH25: 1
A26: MC3300S | B26: 0 | C26: 5 | D26: 1 | E26: 5 | F26: 1 | G26: 0 | H26: 0 | I26: 10 | J26: 10 | K26: 15 | L26: 15 | M26: 20 | N26: 20 | O26: 25 | P26: 25 | Q26: 50 | R26: 50 | S26: 18 | T26: 0 | U26: 0 | X26: 1 | Y26: 4 | Z26: 1 | AA26: 0 | AB26: =Table813[[#This Row],[Devices Per Cradle]]*(T26+1) -> 5 | AG26: 1 | AH26: 1
A27: MC3300T | B27: 0 | C27: 5 | D27: 1 | E27: 5 | F27: 1 | G27: 0 | H27: 0 | I27: 10 | J27: 10 | K27: 15 | L27: 15 | M27: 20 | N27: 20 | O27: 25 | P27: 25 | Q27: 50 | R27: 50 | S27: 19 | T27: 0 | U27: 0 | X27: 1 | Y27: 4 | Z27: 1 | AA27: 0 | AB27: =Table813[[#This Row],[Devices Per Cradle]]*(T27+1) -> 5 | AG27: 1 | AH27: 1
A28: MC3300G | B28: 0 | C28: 5 | D28: 1 | E28: 5 | F28: 2 | G28: 0 | H28: 0 | I28: 10 | J28: 10 | K28: 15 | L28: 15 | M28: 20 | N28: 20 | O28: 25 | P28: 25 | Q28: 50 | R28: 50 | S28: 20 | T28: 0 | U28: 0 | X28: 1 | Y28: 4 | Z28: 1 | AA28: 0 | AB28: =Table813[[#This Row],[Devices Per Cradle]]*(T28+1) -> 5 | AG28: 1 | AH28: 1
A29: MC9300 | B29: 0 | C29: 5 | D29: 0 | E29: 4 | F29: 2 | G29: 0 | H29: 0 | I29: 8 | J29: 8 | K29: 12 | L29: 12 | M29: 16 | N29: 16 | O29: 16 | P29: 16 | Q29: 32 | R29: 32 | S29: 21 | T29: 0 | U29: 0 | X29: 0 | Y29: 0 | AB29: =Table813[[#This Row],[Devices Per Cradle]]*(T29+1) -> 4 | AG29: 1 | AH29: 1
A30: WT6000 | B30: 0 | C30: 5 | D30: 1 | E30: 5 | F30: 1 | G30: 5 | H30: 5 | I30: 20 | J30: 20 | K30: 30 | L30: 30 | M30: 40 | N30: 40 | O30: 50 | P30: 50 | Q30: 100 | R30: 100 | S30: 22 | T30: 1 | U30: 0 | X30: 1 | Y30: 4 | AB30: =Table813[[#This Row],[Devices Per Cradle]]*(T30+1) -> 10 | AG30: 1 | AH30: 1
A31: WT6300 | B31: 0 | C31: 5 | D31: 1 | E31: 5 | F31: 1 | G31: 5 | H31: 5 | I31: 20 | J31: 20 | K31: 30 | L31: 30 | M31: 40 | N31: 40 | O31: 50 | P31: 50 | Q31: 100 | R31: 100 | S31: 23 | T31: 1 | U31: 0 | X31: 1 | Y31: 4 | AB31: =Table813[[#This Row],[Devices Per Cradle]]*(T31+1) -> 10 | AG31: 1 | AH31: 1
A32: ZQ210 | B32: 0 | C32: 5 | D32: 0 | E32: 4 | F32: 1 | G32: 4 | H32: 4 | I32: 16 | J32: 16 | K32: 24 | L32: 24 | M32: 32 | N32: 32 | O32: 40 | P32: 40 | Q32: 80 | R32: 80 | S32: 24 | T32: 1 | U32: 0 | X32: 0 | Y32: 0 | AB32: =Table813[[#This Row],[Devices Per Cradle]]*(T32+1) -> 8 | AG32: 0 | AH32: 1
A33: ZQ310 | B33: 0 | C33: 5 | D33: 0 | E33: 4 | F33: 1 | G33: 4 | H33: 4 | I33: 16 | J33: 16 | K33: 24 | L33: 24 | M33: 32 | N33: 32 | O33: 40 | P33: 40 | Q33: 80 | R33: 80 | S33: 25 | T33: 1 | U33: 0 | X33: 0 | Y33: 0 | AB33: =Table813[[#This Row],[Devices Per Cradle]]*(T33+1) -> 8 | AG33: 0 | AH33: 1
A34: ZQ320 | B34: 0 | C34: 5 | D34: 0 | E34: 5 | F34: 1 | G34: 5 | H34: 5 | I34: 20 | J34: 20 | K34: 30 | L34: 30 | M34: 40 | N34: 40 | O34: 50 | P34: 50 | Q34: 100 | R34: 100 | S34: 26 | T34: 1 | U34: 0 | X34: 0 | Y34: 0 | AB34: =Table813[[#This Row],[Devices Per Cradle]]*(T34+1) -> 10 | AG34: 0 | AH34: 1
A35: ZQ620 | B35: 0 | C35: 5 | D35: 0 | E35: 4 | F35: 1 | G35: 0 | H35: 0 | I35: 16 | J35: 16 | K35: 24 | L35: 24 | M35: 32 | N35: 32 | O35: 40 | P35: 40 | Q35: 80 | R35: 80 | S35: 27 | T35: 1 | U35: 0 | X35: 0 | Y35: 0 | AB35: =Table813[[#This Row],[Devices Per Cradle]]*(T35+1) -> 8 | AG35: 0 | AH35: 0
A36: ZQ630 | B36: 0 | C36: 5 | D36: 0 | E36: 4 | F36: 1 | G36: 0 | H36: 0 | I36: 16 | J36: 16 | K36: 24 | L36: 24 | M36: 32 | N36: 32 | O36: 40 | P36: 40 | Q36: 80 | R36: 80 | S36: 28 | T36: 1 | U36: 0 | X36: 0 | Y36: 0 | AB36: =Table813[[#This Row],[Devices Per Cradle]]*(T36+1) -> 8 | AG36: 0 | AH36: 0
A37: QLN4x | B37: 0 | C37: 5 | D37: 0 | E37: 3 | F37: 1 | G37: 3 | H37: 3 | I37: 12 | J37: 12 | K37: 18 | L37: 18 | M37: 24 | N37: 24 | O37: 30 | P37: 30 | Q37: 60 | R37: 60 | S37: 29 | T37: 1 | U37: 0 | X37: 0 | Y37: 0 | AB37: 6 | AG37: 0 | AH37: 1
A38: ET5x-Windows | B38: 0 | C38: 5 | D38: 0 | E38: 4 | F38: 2 | G38: 0 | H38: 0 | I38: 12 | J38: 12 | K38: 16 | L38: 16 | M38: 20 | N38: 20 | O38: 24 | P38: 24 | Q38: 48 | R38: 48 | S38: 30 | T38: 0 | U38: 1 | X38: 0 | Y38: 4 | AB38: =Table813[[#This Row],[Devices Per Cradle]]*(T38+1) -> 4 | AG38: 0 | AH38: 1
A39: ET5x-Android | B39: 0 | C39: 5 | D39: 0 | E39: 4 | F39: 2 | G39: 0 | H39: 0 | I39: 12 | J39: 12 | K39: 16 | L39: 16 | M39: 20 | N39: 20 | O39: 24 | P39: 24 | Q39: 48 | R39: 48 | S39: 30 | T39: 0 | U39: 1 | X39: 0 | Y39: 4 | AB39: =Table813[[#This Row],[Devices Per Cradle]]*(T39+1) -> 4 | AG39: 1 | AH39: 1
A40: RS5100 | B40: 0 | C40: 5 | D40: 0 | E40: 20 | F40: 1 | G40: 20 | H40: 20 | I40: 80 | J40: 80 | K40: 120 | L40: 120 | M40: 200 | N40: 200 | O40: 240 | P40: 240 | Q40: 480 | R40: 480 | S40: 31 | T40: 1 | U40: 1 | X40: 0 | Y40: 0 | AB40: =Table813[[#This Row],[Devices Per Cradle]]*(T40+1) -> 40 | AG40: 0 | AH40: 1
G42: (Cradle lock Yes Column N/No Column N-1 ) If Stadium ="No" /2) * Toaster
A44: Table 10
A45: 1 | B45: 2 | C45: 3 | D45: 4 | E45: 5 | F45: 6 | G45: 7 | H45: 8 | I45: 9 | J45: 10 | K45: 11 | L45: 12 | M45: 13 | N45: 14 | O45: 15 | P45: 16 | Q45: 17 | R45: 18 | S45: 19 | T45: 20 | U45: 21 | V45: 22 | W45: 23 | X45: 24
A46: Cabinet Options | B46: SKU | C46: Cabinet Base | D46: CC6-Bracket | E46: CC600 Bracket € Price | F46: CC600 Bracket £ Price | G46: CC600 Bracket $ Price | H46: Stadium Compatible | I46: Stadium SKU | J46: Stadium € Price | K46: Stadium £ Price | L46: Stadium $ Price | M46: Std Shelves Shipped | N46: Standard Shelf SKU | O46: Std Shelf € Price | P46: Std Shelf £ Price | Q46: Std Shelf $ Price | R46: Short IEC | S46: Long IEC | T46: Height Factor | U46: Base Compatible | V46: Cabinet Base € Price | W46: Cabinet Base £ Price | X46: Cabinet Base $ Price | Y46: No of IEC Sockets
A47: Compact | B47: CS-CAB-1 | C47: 0 | D47: CS-CAB-MNTG-C6 | E47: 78.4 | F47: 68.72 | G47: 86.15 | H47: 0 | I47: 0 | J47: 0 | K47: 0 | L47: 0 | M47: 0 | N47: 0 | O47: 0 | P47: 0 | Q47: 0 | R47: 0 | S47: 0 | T47: 2 | U47: 0 | V47: 0 | W47: 0 | X47: 0 | Y47: 0
A48: Small | B48: CS-CAB-2 | C48: CS-CAB-BSE | D48: CS-CAB-MNTG-C6 | E48: 78.4 | F48: 68.72 | G48: 86.15 | H48: 1 | I48: CS-CAB-SHV-SS | J48: 79.8 | K48: 69.95 | L48: 87.69 | M48: 1 | N48: CS-CAB-SHV | O48: 98 | P48: 85.9 | Q48: 107.69 | R48: 2 | S48: 0 | T48: 10 | U48: 1 | V48: 448 | W48: 392.7 | X48: 492.31 | Y48: 14
A49: Midi | B49: CS-CAB-3 | C49: CS-CAB-BSE | D49: CS-CAB-MNTG-C6 | E49: 78.4 | F49: 68.72 | G49: 86.15 | H49: 1 | I49: CS-CAB-SHV-SS | J49: 79.8 | K49: 69.95 | L49: 87.69 | M49: 2 | N49: CS-CAB-SHV | O49: 98 | P49: 85.9 | Q49: 107.69 | R49: 2 | S49: 1 | T49: 14 | U49: 1 | V49: 448 | W49: 392.7 | X49: 492.31 | Y49: 14
A50: Large | B50: CS-CAB-4 | C50: CS-CAB-BSE | D50: CS-CAB-MNTG-C6-R1 | E50: 221.54 | F50: 194.19 | G50: 246.15 | H50: 1 | I50: CS-CAB-SHV-SS | J50: 79.8 | K50: 69.95 | L50: 87.69 | M50: 3 | N50: CS-CAB-SHV | O50: 98 | P50: 85.9 | Q50: 107.69 | R50: 3 | S50: 1 | T50: 18 | U50: 1 | V50: 448 | W50: 392.7 | X50: 492.31 | Y50: 14
A51: X-Large | B51: CS-CAB-5XL | C51: Not Compatible | D51: CS-CAB-MNTG-C6-R2 | E51: 221.54 | F51: 194.19 | G51: 246.15 | H51: 1 | I51: CS-CAB-SHV-SS | J51: 79.8 | K51: 69.95 | L51: 87.69 | M51: 4 | N51: CS-CAB-SHV | O51: 98 | P51: 85.9 | Q51: 107.69 | R51: 3 | S51: 2 | T51: 22 | U51: 0 | Y51: 14
A52: Extreme | B52: CS-CAB-5-EXT | C52: Not Compatible | D52: CS-CAB-MNTG-C6-R2 | E52: 221.54 | F52: 194.19 | G52: 246.15 | H52: 1 | I52: CS-CAB-SHV-EXT-SS | J52: 159.6 | K52: 139.9 | L52: 175.38 | M52: 4 | N52: CS-CAB-SHV-EXT | O52: 196.08 | P52: 171.88 | Q52: 215.38 | R52: 6 | S52: 4 | T52: 44 | U52: 0 | Y52: 28
A54: Conversion Factors | Q54: 328 x 580 x 230 | R54: 1012 x 700 x 437 | S54: 1312 x 700 x 437 | T54: 1612 x 700 x 437 | U54: 1912 x 700 x 437 | V54: 1912 x 700 x 437 | W54: 1912 x 1200 x437
A55: Ft to Mtr | B55: 10.764
A56: Table 13
A57: 1 | B57: 2 | C57: 3 | D57: 4 | E57: 5 | F57: 6 | G57: 7 | H57: 8 | I57: 9 | J57: 10 | K57: 11 | L57: 12 | M57: 13 | N57: 14 | O57: 15 | P57: 16 | Q57: 17 | R57: 18 | S57: 19 | T57: 20 | U57: 21 | V57: 22
A58: Cabinet | B58: EMEA SKU | C58: Cabinet € Price | D58: NA Bundled SKU | E58: NA Bundle Price | F58: NA -C6-Bundled SKU | G58: NA-C6-Bundeled Price | H58: APAC - SKU | I58: APAC Cost | J58: APAC-C6-Bundled | K58: LATAM-No Bundle | L58: LATAM-Bundled | M58: LATAM-C6-Bundled | N58: Floor Area Sqr mtr | O58: Wall Area | P58: Weight | Q58: Wall area with Base | R58: Cabinet £ Price | S58: EMEA B-FLTPK SKU2 | T58: Cabinet-B-FLTPK € Price3 | U58: Cabinet-B-FLTPK-£ Price24
A59: Compact | B59: CS-CAB-1-B | C59: 1075.7 | D59: CS-CAB-1-B-N | E59: 1318.05 | F59: CS-CAB-1-B-C6-N | G59: 2121.87 | H59: n/a | I59: n/a | J59: n/a | K59: n/a | L59: n/a | M59: n/a | N59: 0.1334 | O59: 0.19024 | P59: 11 | Q59: 0.19024 | R59: 924.91 | S59: CS-CAB-1-B-FLTPK | T59: 100 | U59: 80
A60: Small | B60: CS-CAB-2-B | C60: 1506.5 | D60: CS-CAB-2-B-N | E60: 1871.26 | F60: CS-CAB-2-B-C6-N | G60: 2675.08 | H60: n/a | I60: n/a | J60: n/a | K60: n/a | L60: n/a | M60: n/a | N60: 0.3059 | O60: 0.7084 | P60: 22 | Q60: 0.9184 | R60: 1320.53 | S60: CS-CAB-2-B-FLTPK | T60: 2000 | U60: 1800
A61: Midi | B61: CS-CAB-3-B | C61: 2216.68 | D61: CS-CAB-3-B-N | E61: 2659.45 | F61: CS-CAB-3-B-C6-N | G61: 3463.27 | H61: n/a | I61: n/a | J61: n/a | K61: n/a | L61: n/a | M61: n/a | N61: 0.3059 | O61: 0.9184 | P61: 44 | Q61: 1.1284 | R61: 1943.04 | S61: CS-CAB-3-B-FLTPK | T61: 30000 | U61: 2800
A62: Large | B62: CS-CAB-4-B | C62: 2524.41 | D62: CS-CAB-4-B-N | E62: 3000.72 | F62: CS-CAB-4-B-C6-N | G62: 3804.75 | H62: n/a | I62: n/a | J62: n/a | K62: n/a | L62: n/a | M62: n/a | N62: 0.3059 | O62: 1.1284 | P62: 66 | Q62: 1.3384 | R62: 2212.79 | S62: CS-CAB-4-B-FLTPK | T62: 4000 | U62: 3800
A63: X-Large | B63: CS-CAB-5XL-B | C63: 3481.88 | D63: CS-CAB-5XL-B-N | E63: 4063.42 | F63: CS-CAB-5XL-B-C6-N | G63: 4867.24 | H63: n/a | I63: n/a | J63: n/a | K63: n/a | L63: n/a | M63: n/a | N63: 0.3059 | O63: 1.3384 | P63: 88 | Q63: 1.3384 | R63: 3052.06 | S63: CS-CAB-5XL-B-FLTPK | T63: 5000 | U63: 4800
A64: Extreme | B64: CS-CAB-5EXT-B | C64: 5743.08 | D64: CS-CAB-5EXT-B-N | E64: 6468.07 | F64: CS-CAB-5EXT-B-C6-N | G64: 7271.89 | H64: n/a | I64: n/a | J64: n/a | K64: n/a | L64: n/a | M64: n/a | N64: 0.5244 | O64: 2.2944 | P64: 120 | Q64: 2.2944 | R64: 5034.13 | S64: CS-CAB-5EXT-B-FLTPK | T64: 5500 | U64: 4900
A67: Table 1 | F67: Table 4 | M67: Table 2 | T67: Table 11
A68: Device | B68: Unit Value | C68: Devices per cradle | D68: Unit Depth | F68: SKU | G68: € Price | H68: £ Price | I68: $ Price | M68: Country | N68: Cable SKU | O68: Unit Price | P68: Code | Q68: Currency | R68: Area Unit | T68: Cabinet Factor | U68: Cabinet Name | V68: CC6-Bracket | X68: Table 3
A69: TC21 | B69: 5 | C69: 5 | D69: 1 | F69: CS-CAB-IEC | G69: 7.7 | H69: 6.14 | M69: United Kingdom | N69: CS-CAB-UK-MLEAD | O69: 6.75 | P69: UK | Q69: £ | R69: m² | T69: 10 | U69: Compact | V69: CS-CAB-MNTG-C6 | X69: Optimal | Y69: Answer
A70: TC26 | B70: 7.5 | C70: 5 | D70: 1 | F70: CS-CAB-IEC-L | G70: 6.92 | H70: 6.07 | M70: Europe | N70: CS-CAB-EU-MLEAD | O70: 7.7 | P70: EU | Q70: € | R70: m² | T70: 30 | U70: Small | V70: CS-CAB-MNTG-C6 | X70: Optimal | Y70: 1
A71: TC52 | B71: 7.5 | C71: 5 | D71: 1 | F71: CS-CC6-IEC | G71: 7.7 | H71: 6.75 | M71: North America | N71: CS-CAB-NA-MLEAD | O71: 10 | P71: NA | Q71: $ | R71: Ft² | T71: 40 | U71: Midi | V71: CS-CAB-MNTG-C6 | X71: All | Y71: 0
A72: TC77 | B72: 7.5 | C72: 5 | D72: 1 | F72: CS-CAB-NA-IEC | I72: 7.69 | M72: Australia | N72: CS-CAB-AU-MLEAD | O72: 99 | P72: AU | Q72: $ | R72: m² | T72: 50 | U72: Large | V72: CS-CAB-MNTG-C6-R!
A73: MC3300 | B73: 10 | C73: 5 | D73: 2 | F73: CS-CAB-NA-IEC-L | I73: 7.69 | T73: 60 | U73: X-Large | V73: CS-CAB-MNTG-C6-R2
A74: MC9300 | B74: 12 | C74: 4 | D74: 2 | F74: CS-CC6-NA-IEC | I74: 8.46 | T74: 120 | U74: Extreme | V74: CS-CAB-MNTG-C6-R2
A75: TC8300 | B75: 10 | C75: 5 | D75: 2
A77: Table 8 | I77: Table 9 | S77: Table 7
A78: Column1 | B78: Compact | C78: Small | D78: Midi | E78: Large | F78: X-Large | G78: Extreme | I78: Column1 | J78: Compact | K78: Small | L78: Midi | M78: Large | N78: X-Large | O78: Extreme | S78: Top or Side | T78: Answer
A79: TC20 | B79: 5 | C79: 30 | D79: 40 | E79: 50 | F79: 60 | G79: 120 | I79: TC20 | J79: 5 | K79: 20 | L79: 30 | M79: 40 | N79: 50 | O79: 100 | S79: Top | T79: T
A80: TC21 | B80: 5 | C80: 30 | D80: 30 | E80: 40 | F80: 50 | G80: 100 | I80: TC21 | J80: 5 | K80: 20 | L80: 30 | M80: 40 | N80: 50 | O80: 100 | S80: Side | T80: S
A81: TC26 | B81: 5 | C81: 20 | D81: 30 | E81: 40 | F81: 50 | G81: 100 | I81: TC26 | J81: 5 | K81: 20 | L81: 30 | M81: 40 | N81: 50 | O81: 100
A82: TC50 | B82: 5 | C82: 20 | D82: 30 | E82: 40 | F82: 50 | G82: 100 | I82: TC50 | J82: 5 | K82: 20 | L82: 30 | M82: 40 | N82: 50 | O82: 100
A83: TC56 | B83: 5 | C83: 20 | D83: 30 | E83: 40 | F83: 50 | G83: 100 | I83: TC56 | J83: 5 | K83: 20 | L83: 30 | M83: 40 | N83: 50 | O83: 100 | Q83: Table 19
A84: TC57 | B84: 5 | C84: 20 | D84: 30 | E84: 40 | F84: 50 | G84: 100 | I84: TC57 | J84: 5 | K84: 20 | L84: 30 | M84: 40 | N84: 50 | O84: 100 | Q84: Years | R84: Software | S84: Price £ | T84: Price € | U84: Price $
A85: TC70 | B85: 5 | C85: 20 | D85: 30 | E85: 40 | F85: 50 | G85: 100 | I85: TC70 | J85: 5 | K85: 20 | L85: 30 | M85: 40 | N85: 50 | O85: 100 | Q85: 0 | R85: None | S85: 0 | T85: 0 | U85: 0
A86: TC77 | B86: 5 | C86: 20 | D86: 30 | E86: 40 | F86: 50 | G86: 100 | I86: TC77 | J86: 5 | K86: 20 | L86: 30 | M86: 40 | N86: 50 | O86: 100 | Q86: 1 | R86: CS-ACS-MGTB-1 | S86: 27.43 | T86: 31.29 | U86: 34.38
A87: TC8300 | B87: 0 | C87: 15 | D87: 15 | E87: 20 | F87: 25 | G87: 50 | I87: TC8300 | J87: 0 | K87: 0 | L87: 0 | M87: 0 | N87: 0 | O87: 0 | Q87: 3 | R87: CS-ACS-MGTB-3 | S87: 72.94 | T87: 83.21 | U87: 91.45
A88: MC3300 | B88: 0 | C88: 10 | D88: 15 | E88: 20 | F88: 25 | G88: 50 | I88: MC3300 | J88: 0 | K88: 0 | L88: 0 | M88: 0 | N88: 0 | O88: 0 | Q88: 5 | R88: CS-ACS-MGTB-5 | S88: 115.94 | T88: 132.26 | U88: 150.84
A89: MC9300 | B89: 0 | C89: 8 | D89: 12 | E89: 16 | F89: 20 | G89: 40 | I89: MC9300 | J89: 0 | K89: 0 | L89: 0 | M89: 0 | N89: 0 | O89: 0
A90: WT6000 | B90: 5 | C90: 15 | D90: 15 | E90: 20 | F90: 25 | G90: 50 | I90: WT6000 | J90: 0 | K90: 0 | L90: 0 | M90: 0 | N90: 0 | O90: 0
A92: Table 5 | D92: Table 6 - to be deleted | I92: Table 15 | N92: Table 16
A93: Yes/No | B93: Answer | D93: CC6000 Mount | E93: SKU | F93: CC6000 € Price | G93: Code | I93: Cradle Lock SKU | J93: Cradle Lock € Price | K93: Cradle Lock $ Price | L93: Cradle Lock £ Price | N93: Item | O93: SKU | P93: Price EU | Q93: Price UK
A94: YES | B94: 1 | D94: Top | E94: CS-CAB-MNTG-C6 | F94: YYY | G94: YYY | I94: CS-CRD-LOC | J94: 500 | K94: 506.31 | N94: CC6000 | O94: CC6000-10-3200LCWW | P94: 1513.49 | Q94: 1326.66
A95: No | B95: 2 | D95: Side L-XL | E95: CS-CAB-MNTG-C6-R1 | F95: YYY | G95: YYY | I95: CS-CRD-LOC-TC2 | J95: 481.98 | K95: 491.43 | N95: CC6000 PSU | O95: PWR-BUA5V16W0WW | P95: 31.09 | Q95: 27.25
D96: Side Ext | E96: CS-CAB-MNTG-C6-R2 | F96: YYY | G96: YYY | I96: CS-CRD-LOC-TC5 | J96: 459.03 | K96: 468.03 | N96: CC6000 DC Cable | O96: CBL-DC-383A1-01 | P96: 6.54 | Q96: 5.74
I97: CS-CRD-LOC-TC5-T | J97: 416.19 | K97: 424.35
I98: CS-CRD-LOC-TC7 | J98: 481.98 | K98: 491.43
A99: Table 14 | I99: CS-CRD-LOC-TC7-T | J99: 416.19 | K99: 424.35
A100: Yes/No | B100: Answer | C100: Column1
A101: Yes | B101: 1 | C101: Yes
A102: No | B102: 0 | C102: No
A104: SKU_Price
A105: SKU | B105: Euro | C105: UK | D105: NA | E105: ANZ | F105: LATAM
A106: CS-CAB-1-B | B106: 1075.7 | C106: 924.91
A107: CS-CAB-2-B | B107: 1506.5 | C107: 1320.53
A108: CS-CAB-3-B | B108: 2216.68 | C108: 1943.04
A109: CS-CAB-4-B | B109: 2524.41 | C109: 2212.79
A110: CS-CAB-5XL-B | B110: 3481.88 | C110: 3052.06
A111: CS-CAB-5EXT-B | B111: 5743.08 | C111: 5034.13
A112: CS-CAB-1-B-FLTPK | B112: 1075.7 | C112: 924.91
A113: CS-CAB-2-B-FLTPK | B113: 1506.5 | C113: 1320.53
A114: CS-CAB-3-B-FLTPK | B114: 2216.68 | C114: 1943.04
A115: CS-CAB-4-B-FLTPK | B115: 2524.41 | C115: 2212.79
A116: CS-CAB-5XL-B-FLTPK | B116: 3481.88 | C116: 3052.06
A117: CS-CAB-5EXT-B-FLTPK | B117: 5743.08 | C117: 5034.13
A118: CS-CAB-1-B-N | D118: 1318.05
A119: CS-CAB-2-B-N | D119: 1871.26
A120: CS-CAB-3-B-N | D120: 2659.45
A121: CS-CAB-4-B-N | D121: 3000.72
A122: CS-CAB-5XL-B-N | D122: 4063.42
A123: CS-CAB-5EXT-B-N | D123: 6468.07
A124: CS-CAB-1-B-C6-N | D124: 2121.87
A125: CS-CAB-2-B-C6-N | D125: 2675.08
A126: CS-CAB-3-B-C6-N | D126: 3463.27
A127: CS-CAB-4-B-C6-N | D127: 3804.75
A128: CS-CAB-5XL-B-C6-N | D128: 4867.24
A129: CS-CAB-5EXT-B-C6-N | D129: 7271.89
A130: CS-CAB-1-B-N-FLTPK
A131: CS-CAB-2-B-N-FLTPK
A132: CS-CAB-3-B-N-FLTPK
A133: CS-CAB-4-B-N-FLTPK
A134: CS-CAB-5XL-B-N-FLTPK
A135: CS-CAB-5EXT-B-N-FLTPK
A136: CS-CAB-1-B-C6-N-FLTPK
A137: CS-CAB-2-B-C6-N-FLTPK
A138: CS-CAB-3-B-C6-N-FLTPK
A139: CS-CAB-4-B-C6-N-FLTPK
A140: CS-CAB-5XL-B-C6-N-FLTPK
A141: CS-CAB-5EXT-B-C6-N-FLTPK

Sheet Cabinet Features
A2: Cabinet Detail
A4: (Colours used for illustration purposes only)
O5: Sloping Lid - Aids ventilation
O10: Right hand bi-fold door
AB13: Base Unit - (drawer partially open)
O16: Acrylic leaf - contents visible when door is locked
D18: Left hand bi-fold door
O19: 14 socket Power Distribution Unit (PDU) | U19: Small Cabinet with CC6000 mounted on top. Can also be mounted on top of Midi
D23: Door handle | O23: Cradle fixing screw
O27: Louvred panel - flexible shelf positions
AB28: Compact Cabinet (door open)
O30: Stadium shelf - half depth
AB31: List of Compatible Devices
O33: Main shelf - full depth | AB33: EC30 | AC33: TC20 | AD33: MC2200 | AE33: WT6000
D34: Door lock | AB34: EC50 | AC34: TC25 | AD34: MC2700 | AE34: WT6300
AB35: EC55 | AC35: TC21
AC36: TC26 | AD36: ZQ210 | AE36: RS5100
AC37: TC50 | AD37: ZQ310
O38: Cable entry point; Power, Ethernet etc. | AC38: TC51 | AD38: ZQ320
AC39: TC52 | AD39: QLN4x
AC40: TC56
AC41: TC57
AC42: TC70
AC43: TC72
AC44: TC75
AC45: TC77
U49: Large Cabinet with CC6000 mounted on Right hand side. CC600 side mounted on Large, X-Large and Extreme
B52: Cradle Locks and Stadium Shelves | D52: Extreme & X-Large | F52: If Stadium Shelves are fitted then adding Cradle locks makes the lowest Stadium shelf difficult to access, therefore when Cradle Locks are added, the number of Stadium shelves and IEC-L cables will be reduced by 1 for each cabinet.
D55: Large, Midi & Small | F55: This also applies to the Large, Midi and Small cabinets. If the Cabinet Base unit is used or, in the case of Midi & Small cabinets, they are wall mounted, then this Stadium Shelf can be used

Sheet Cabinet Dimensions
B2: Small | C2: Small with Base | D2: Midi | E2: Midi with Base | F2: Large | G2: Large with Base | H2: X-Large | I2: Extreme
A3: Height | B3: 1000mm, 39.4" | C3: 1300mm, 51.2" | D3: 1300mm, 51.2" | E3: 1600mm, 63" | F3: 1600mm, 63" | G3: 1900mm, 74.8" | H3: 1900mm, 74.8" | I3: 1900mm, 74.8"
A4: Width | B4: 700mm, 27.5" | C4: 700mm, 27.5" | D4: 700mm, 27.5" | E4: 700mm, 27.5" | F4: 700mm, 27.5" | G4: 700mm, 27.5" | H4: 700mm, 27.5" | I4: 1200mm, 47.2"
A5: Depth | B5: 440mm, 17.3" | C5: 440mm, 17.3" | D5: 440mm, 17.3" | E5: 440mm, 17.3" | F5: 440mm, 17.3" | G5: 440mm, 17.3" | H5: 440mm, 17.3" | I5: 440mm, 17.3"
A6: Cabinet Weight | B6: 44kg, 97lbs | C6: 66kg, 145.5lbs | D6: 57kg, 125.6lbs | E6: 79kg, 174lbs | F6: 70kg, 154lbs | G6: 92kg, 202.8lbs | H6: 83kg, 182.9lbs | I6: 124kg, 273.4lbs
A7: Shelf Weight | B7: 2.7kg, 5.9lbs | C7: 2.7kg, 5.9lbs | D7: 2.7kg, 5.9lbs | E7: 2.7kg, 5.9lbs | F7: 2.7kg, 5.9lbs | G7: 2.7kg, 5.9lbs | H7: 2.7kg, 5.9lbs | I7: 5kg, 11lbs
A8: Stadium Shelf Weight | B8: 1.2kg, 2.6lbs | C8: 1.2kg, 2.6lbs | D8: 1.2kg, 2.6lbs | E8: 1.2kg, 2.6lbs | F8: 1.2kg, 2.6lbs | G8: 1.2kg, 2.6lbs | H8: 1.2kg, 2.6lbs | I8: 2.4kg, 5.2lbs
A9: Cables included with Cabinet | C9: 2 x IEC | D9: 2 x IEC, 1 x IEC-L | E9: 2 x IEC, 1 x IEC-L | F9: 3 x IEC, 1 x IEC-L | G9: 3 x IEC, 1 x IEC-L | H9: 3 x IEC, 2 x IEC-L | I9: 6 x IEC, 4 x IEC-L
A10: Slots (No of potential shelf locations) | B10: 10 | C10: 10 | D10: 14 | E10: 14 | F10: 18 | G10: 18 | H10: 22 | I10: 44
A11: Slot spacing (mm) Space between shelf supports | B11: 75mm, 2.95" | C11: 75mm, 2.95" | D11: 75mm, 2.95" | E11: 75mm, 2.95" | F11: 75mm, 2.95" | G11: 75mm, 2.95" | H11: 75mm, 2.95" | I11: 75mm, 2.95"
A12: Default inter-shelf gap (mm) The space between shelf positions | B12: 450mm, 17.7" | C12: 450mm, 17.7" | D12: 450mm, 17.7" | E12: 375mm, 14.7" | F12: 375mm, 14.7" | G12: 375mm, 14.7" | H12: 375mm, 14.7" | I12: 375mm, 14.7"
A13: Gap from Top shelf to Cabinet top | B13: 427mm, 16.8" | C13: 427mm, 16.8" | D13: 427mm, 16.8" | E13: 427mm, 16.8" | F13: 352mm, 13.8" | G13: 352mm, 13.8" | H13: 277mm, 10.9" | I13: 277mm, 10.9"
A14: Compatible with Base Unit | B14: Yes | C14: Yes | D14: Yes | E14: Yes | F14: Yes | G14: Yes | H14: No | I14: No
A15: The lady shown below is scaled to 1.61m or 5ft 3in, the average height for a UK female. She is shown in proportion to the cabinets
B18: Orange Shelf: Stadium
B19: Red Shelf: Standard

Sheet AMS-Features
A1: AMS Features and Benefits
B53: For further details and training information on Zebra Access Management System please use the following link: | P53: https://www.zebra.com/us/en/support-downloads/software/productivity-apps/intelligent-cabinets.html
B55: For an amazing insight on how Intelligent Cabinets can help your customers see the following video on Zebra Technologies YouTube Channel : | T55: https://www.youtube.com/watch?v=3JJajoA0DtY

Sheet Configurator
A1: 210325
B2: Data Input | H2: Recommended configuration | Q2: Z3br4 | R2: Bill Of Materials and SKU List | X2: Bill Of Materials and SKU List | AD2: Bill Of Materials and SKU List | AJ2: Bill Of Materials and SKU List | AP2: Bill Of Materials and SKU List
B3: Enter data and select options in the drop down menus highlighted in blue below. | H3: Optimal cabinet choice based upon cost and capacity, and assumes the same cabinet type is used. Alternative considerations and cabinet combinations are listed further below. Pricing may change and is for comparisson purposes only. Please refer to Solution Pathway or Partner Gateway for latest pricing. | R3: Use the SKUs and Quantities (Qty) listed below to generate quotes using your quoting tool, such as Solutions Pathway. | X3: Use the SKUs and Quantities (Qty) listed below to generate quotes using your quoting tool, such as Solutions Pathway. | AD3: Use the SKUs and Quantities (Qty) listed below to generate quotes using your quoting tool, such as Solution Pathway. | AJ3: Use the SKUs and Quantities (Qty) listed below to generate quotes using your quoting tool, such as Solution Pathway. | AP3: Use the SKUs and Quantities (Qty) listed below to generate quotes using your quoting tool, such as Solution Pathway.
B5: Number of Mobile Devices per Location | D5: 100 | H5: Same Cabinet Type Solution | J5: Extreme | K5: X-Large | L5: Large | M5: Midi | N5: Small | R5: =Device_Cabinet_Data!A52 -> Extreme | X5: =Device_Cabinet_Data!A51 -> X-Large | AD5: =Device_Cabinet_Data!A50 -> Large | AJ5: =Device_Cabinet_Data!A49 -> Midi | AP5: =Device_Cabinet_Data!A48 -> Small
I6: Devices per cabinet | J6: =$G$12/$F$12*(IF(AND($D$20="No",$F$19=1),$J$13/2,IF($D$22="Yes", VLOOKUP($D$9,Table813[],17,FALSE),$J13))) -> 100 | K6: =$G$12/$F$12*(IF(AND($D$20="No",$F$19=1),$K$13/2,IF($D$22="Yes", VLOOKUP($D$9,Table813[],15,FALSE),$K13))) -> 50 | L6: =$G$12/$F$12*(IF(AND($D$20="No",$F$19=1),$L$13/2,IF(AND($D$22="Yes",$D$23<>"Base"),VLOOKUP($D$9,Table813[],13,FALSE),$L13))) -> 40 | M6: =$G$12/$F$12*(IF(AND($D$20="No",$F$19=1),$M$13/2,IF(AND($D$22="Yes",$D$23="None"), VLOOKUP($D$9,Table813[],11,FALSE),$M13))) -> 30 | N6: =$G$12/$F$12*(IF(AND($D$20="No",$F$19=1),$N$13/2,IF(AND($D$22="Yes",$D$23="None"), VLOOKUP($D$9,Table813[],9,FALSE),$N13))) -> 20 | R6: Floor Area | S6: =IF($G$10="NA", _xlfn.CONCAT(R$25,Device_Cabinet_Data!$R$71), _xlfn.CONCAT(R$25,Device_Cabinet_Data!$R$69)) -> 0.52m² | T6: Wall Area | U6: =IF($G$10="NA",_xlfn.CONCAT(R$26,Device_Cabinet_Data!$R$71),_xlfn.CONCAT(R$26,Device_Cabinet_Data!$R$69)) -> 2.29m² | X6: Floor Area | Y6: =IF($G$10="NA", _xlfn.CONCAT(X$25,Device_Cabinet_Data!$R$71), _xlfn.CONCAT(X$25,Device_Cabinet_Data!$R$69)) -> 1.05m² | Z6: Wall Area | AA6: =IF($G$10="NA",_xlfn.CONCAT(X$26,Device_Cabinet_Data!$R$71),_xlfn.CONCAT(X$26,Device_Cabinet_Data!$R$69)) -> 2.68m² | AD6: Floor Area | AE6: =IF($G$10="NA", _xlfn.CONCAT(AD$25,Device_Cabinet_Data!$R$71), _xlfn.CONCAT(AD$25,Device_Cabinet_Data!$R$69)) -> 1.57m² | AF6: Wall Area | AG6: =IF($G$10="NA",_xlfn.CONCAT(AD$26,Device_Cabinet_Data!$R$71),_xlfn.CONCAT(AD$26,Device_Cabinet_Data!$R$69)) -> 3.39m² | AJ6: Floor Area | AK6: =IF($G$10="NA", _xlfn.CONCAT(AJ$25,Device_Cabinet_Data!$R$71), _xlfn.CONCAT(AJ$25,Device_Cabinet_Data!$R$69)) -> 2.1m² | AL6: Wall Area | AM6: =IF($G$10="NA",_xlfn.CONCAT(AJ$26,Device_Cabinet_Data!$R$71),_xlfn.CONCAT(AJ$26,Device_Cabinet_Data!$R$69)) -> 3.67m² | AP6: Floor Area | AQ6: =IF($G$10="NA", _xlfn.CONCAT(AP$25,Device_Cabinet_Data!$R$71), _xlfn.CONCAT(AP$25,Device_Cabinet_Data!$R$69)) -> 2.62m² | AR6: Wall Area | AS6: =IF($G$10="NA",_xlfn.CONCAT(AP$26,Device_Cabinet_Data!$R$71),_xlfn.CONCAT(AP$26,Device_Cabinet_Data!$R$69)) -> 3.54m²
I7: No of Cabinets Required | J7: =IF(INT($D$5/J$6)=0, "1",ROUNDUP($D$5/J$6,0)) -> 1 | K7: =IF(INT($D$5/K$6)=0, "1",ROUNDUP($D$5/K$6,0)) -> 2 | L7: =IF(INT($D$5/L$6)=0, "1",ROUNDUP($D$5/L$6,0)) -> 3 | M7: =IF(INT($D$5/M$6)=0, "1",ROUNDUP($D$5/M$6,0)) -> 4 | N7: =IF(INT($D$5/N$6)=0, "1",ROUNDUP($D$5/N$6,0)) -> 5 | R7: Product Build | S7: SKU | T7: Unit Price | U7: Qty | V7: Total | X7: Product Build | Y7: SKU | Z7: Unit Price | AA7: Qty | AB7: Total | AD7: Product Build | AE7: SKU | AF7: Unit Price | AG7: Qty | AH7: Total | AJ7: Product Build | AK7: SKU | AL7: Unit Price | AM7: Qty | AN7: Total | AP7: Product Build | AQ7: SKU | AR7: Unit Price | AS7: Qty | AT7: Total
B8: Flat Pack | D8: Yes | I8: Stadium Shelves Rqd | J8: =IF($F$20=1,J7*((VLOOKUP(J5,Table10[],13,FALSE))+1-$F$22),0) -> 5 | K8: =IF($F$20=1,K7*((VLOOKUP(K5,Table10[],13,FALSE))+1-$F$22),0) -> 10 | L8: =IF($F$20=1,L7*((VLOOKUP(L5,Table10[],13,FALSE))+1-($F$22*$F$23)),0) -> 12 | M8: =IF($F$20=1,M7*((VLOOKUP(M5,Table10[],13,FALSE))+1-($F$22*$F$23)),0) -> 12 | N8: =IF($F$20=1,N7*((VLOOKUP(N5,Table10[],13,FALSE))+1),0) -> 10 | R8: =IF($G$10<>"NA","Cabinets",IF($D$16="Yes","Cabinets with CC6","Cabinets w/o CC6")) -> Cabinets | S8: =IF($G$10<>"NA",IF($D$8="Yes",Device_Cabinet_Data!$S$64,Device_Cabinet_Data!$B$64),IF($D$16="No",Device_Cabinet_Data!$D64,Device_Cabinet_Data!$F64)) -> CS-CAB-5EXT-B-FLTPK | T8: =VLOOKUP(S8, SKU_Price[], IF($G$10="EU",2,IF($G$10="UK",3,IF($G$10="NA",4,0))),FALSE) -> 5743.08 | U8: =IF($G$10="NA",IF($D$16="Yes",ROUNDUP(Configurator!$J$7/$D$17,0),$J$7),$J$7) -> 1 | V8: =IFERROR(IF(U8>0,T8*U8,""),"") -> 5743.08 | X8: =IF($G$10<>"NA","Cabinets",IF($D$16="Yes","Cabinets with CC6","Cabinets w/o CC6")) -> Cabinets | Y8: =IF($G$10<>"NA",IF($D$8="Yes",Device_Cabinet_Data!$S$63,Device_Cabinet_Data!$B$63),IF($D$16="No",Device_Cabinet_Data!$D63,Device_Cabinet_Data!$F63)) -> CS-CAB-5XL-B-FLTPK | Z8: =VLOOKUP(Y8, SKU_Price[], IF($G$10="EU",2,IF($G$10="UK",3,IF($G$10="NA",4,0))),FALSE) -> 3481.88 | AA8: =IF($G$10="NA",IF($D$16="Yes",ROUNDUP(Configurator!$K$7/$D$17,0),$K$7),$K$7) -> 2 | AB8: =IFERROR(IF(AA8>0,Z8*AA8,""),"") -> 6963.76 | AD8: =IF($G$10<>"NA","Cabinets",IF($D$16="Yes","Cabinets with CC6","Cabinets w/o CC6")) -> Cabinets | AE8: =IF($G$10<>"NA",IF($D$8="Yes",Device_Cabinet_Data!$S$62,Device_Cabinet_Data!$B$62),IF($D$16="No",Device_Cabinet_Data!$D62,Device_Cabinet_Data!$F62)) -> CS-CAB-4-B-FLTPK | AF8: =VLOOKUP(AE8, SKU_Price[], IF($G$10="EU",2,IF($G$10="UK",3,IF($G$10="NA",4,0))),FALSE) -> 2524.41 | AG8: =IF($G$10="NA",IF($D$16="Yes",ROUNDUP(Configurator!$L$7/$D$17,0),$L$7),$L$7) -> 3 | AH8: =IFERROR(IF(AG8>0,AF8*AG8,""),"") -> 7573.23 | AJ8: =IF($G$10<>"NA","Cabinets",IF($D$16="Yes","Cabinets with CC6","Cabinets w/o CC6")) -> Cabinets | AK8: =IF($G$10<>"NA",IF($D$8="Yes",Device_Cabinet_Data!$S$61,Device_Cabinet_Data!$B$61),IF($D$16="No",Device_Cabinet_Data!$D61,Device_Cabinet_Data!$F61)) -> CS-CAB-3-B-FLTPK | AL8: =VLOOKUP(AK8, SKU_Price[], IF($G$10="EU",2,IF($G$10="UK",3,IF($G$10="NA",4,0))),FALSE) -> 2216.68 | AM8: =IF($G$10="NA",IF($D$16="Yes",ROUNDUP(Configurator!$M$7/$D$17,0),$M$7),$M$7) -> 4 | AN8: =IFERROR(IF(AM8>0,AL8*AM8,""),"") -> 8866.72 | AP8: =IF($G$10<>"NA","Cabinets",IF($D$16="Yes","Cabinets with CC6","Cabinets w/o CC6")) -> Cabinets | AQ8: =IF($G$10<>"NA",IF($D$8="Yes",Device_Cabinet_Data!$S$60,Device_Cabinet_Data!$B$60),IF($D$16="No",Device_Cabinet_Data!$D60,Device_Cabinet_Data!$F60)) -> CS-CAB-2-B-FLTPK | AR8: =VLOOKUP(AQ8, SKU_Price[], IF($G$10="EU",2,IF($G$10="UK",3,IF($G$10="NA",4,0))),FALSE) -> 1506.5 | AS8: =IF($G$10="NA",IF($D$16="Yes",ROUNDUP(Configurator!$N$7/$D$17,0),$N$7),$N$7) -> 5 | AT8: =IFERROR(IF(AS8>0,AR8*AS8,""),"") -> 7532.5
B9: Select Your Device | D9: TC57 | E9: =VLOOKUP(D9,Table813[[Device]:[Unit Value]],3,) -> 5 | I9: Expansion Capacity | J9: =(J7*J6)-$D$5 -> 0 | K9: =(K7*K6)-$D$5 -> 0 | L9: =(L7*L6)-$D$5 -> 20 | M9: =(M7*M6)-$D$5 -> 20 | N9: =(N7*N6)-$D$5 -> 0 | R9: =IF(AND($G$10="NA",U$9<>""),"Cabinets, w/o CC6","") ->  | S9: =IF(AND($G$10="NA",U9<>""),IF(AND($D$14<>1,$J$7>1),VLOOKUP(Configurator!$J$5,Table13[[#All],[Cabinet]:[NA-C6-Bundeled Price]],4,FALSE),""),"") ->  | T9: =IF(AND(U9<>"",$G$10="NA"),IF(AND($D$14<>1,$J$7>1),VLOOKUP(Configurator!$J$5,Table13[[#All],[Cabinet]:[NA-C6-Bundeled Price]],5,FALSE),""),"") ->  | U9: =IF($G$10="NA",IF($J$7-$U$8=0,"",$J$7-$U$8),"") ->  | V9: =IFERROR(IF(U9>0,T9*U9,""),"") ->  | X9: =IF(AND($G$10="NA",AA$9<>""),"Cabinets, w/o CC6","") ->  | Y9: =IF(AND(AA9<>"",$G$10="NA"),IF(AND($D$14<>1,$K$7>1),VLOOKUP(Configurator!$K$5,Table13[[#All],[Cabinet]:[NA-C6-Bundeled Price]],4,FALSE),""),"") ->  | Z9: =IF(AND(AA9<>"",$G$10="NA"),IF(AND($D$14<>1,$K$7>1),VLOOKUP(Configurator!$K$5,Table13[[#All],[Cabinet]:[NA-C6-Bundeled Price]],5,FALSE),""),"") ->  | AA9: =IF($G$10="NA",IF($K$7-$AA$8=0,"",$K$7-$AA$8),"") ->  | AB9: =IFERROR(IF(AA9>0,Z9*AA9,""),"") ->  | AD9: =IF(AND($G$10="NA",AG$9<>""),"Cabinets, w/o CC6","") ->  | AE9: =IF(AND(AG9<>"",$G$10="NA"),IF(AND($D$14<>1,$L$7>1),VLOOKUP(Configurator!$L$5,Table13[[#All],[Cabinet]:[NA-C6-Bundeled Price]],4,FALSE),""),"") ->  | AF9: =IF(AND(AG9<>"",$G$10="NA"),IF(AND($D$14<>1,$L$7>1),VLOOKUP(Configurator!$L$5,Table13[[#All],[Cabinet]:[NA-C6-Bundeled Price]],5,FALSE),""),"") ->  | AG9: =IF($G$10="NA",IF($L$7-AG$8=0,"",$L$7-AG$8),"") ->  | AJ9: =IF(AND($G$10="NA",AM$9<>""),"Cabinets, w/o CC6","") ->  | AK9: =IF(AND(AM9<>"",$G$10="NA"),IF(AND($D$14<>1,$M$7>1),VLOOKUP(Configurator!$M$5,Table13[[#All],[Cabinet]:[NA-C6-Bundeled Price]],4,FALSE),""),"") ->  | AL9: =IF(AND(AM9<>"",$G$10="NA"),IF(AND($D$14<>1,$M$7>1),VLOOKUP(Configurator!$M$5,Table13[[#All],[Cabinet]:[NA-C6-Bundeled Price]],5,FALSE),""),"") ->  | AM9: =IF($G$10="NA",IF($M$7-AM$8=0,"",$M$7-AM$8),"") ->  | AP9: =IF(AND($G$10="NA",AS$9<>""),"Cabinets, w/o CC6","") ->  | AQ9: =IF(AND(AS9<>"",$G$10="NA"),IF(AND($D$14<>1,$N$7>1),VLOOKUP(Configurator!$N$5,Table13[[#All],[Cabinet]:[NA-C6-Bundeled Price]],4,FALSE),""),"") ->  | AR9: =IF(AND(AS9<>"",$G$10="NA"),IF(AND($D$14<>1,$N$7>1),VLOOKUP(Configurator!$N$5,Table13[[#All],[Cabinet]:[NA-C6-Bundeled Price]],5,FALSE),""),"") ->  | AS9: =IF($G$10="NA",IF($N$7-AS$8=0,"",$N$7-AS$8),"") -> 
B10: Select Your Country | D10: Europe | E10: =VLOOKUP(D10,Table2[],2,FALSE) -> CS-CAB-EU-MLEAD | F10: =VLOOKUP(D10,Table2[],5,FALSE) -> € | G10: =VLOOKUP(D10,Table2[],4,FALSE) -> EU | I10: IEC Socket per Cabinet | J10: =VLOOKUP(J5,Table10[],25,FALSE) -> 28 | K10: =VLOOKUP(K5,Table10[],25,FALSE) -> 14 | L10: =VLOOKUP(L5,Table10[],25,FALSE) -> 14 | M10: =VLOOKUP(M5,Table10[],25,FALSE) -> 14 | N10: =VLOOKUP(N5,Table10[],25,FALSE) -> 14 | R10: Power Cable | S10: =Configurator!$E$10 -> CS-CAB-EU-MLEAD | T10: =VLOOKUP(Configurator!$D$10,Table2[],3,FALSE) -> 7.7 | U10: =Configurator!J7*2 -> 2 | V10: =IFERROR(IF(U10>0,T10*U10,""),"") -> 15.4 | X10: Power Cable | Y10: =Configurator!$E$10 -> CS-CAB-EU-MLEAD | Z10: =VLOOKUP(Configurator!$D$10,Table2[],3,FALSE) -> 7.7 | AA10: =Configurator!K7 -> 2 | AB10: =IFERROR(IF(AA10>0,Z10*AA10,""),"") -> 15.4 | AD10: Power Cable | AE10: =Configurator!$E$10 -> CS-CAB-EU-MLEAD | AF10: =VLOOKUP(Configurator!$D$10,Table2[],3,FALSE) -> 7.7 | AG10: =Configurator!L7 -> 3 | AH10: =IFERROR(IF(AG10>0,AF10*AG10,""),"") -> 23.1 | AJ10: Power Cable | AK10: =Configurator!$E$10 -> CS-CAB-EU-MLEAD | AL10: =VLOOKUP(Configurator!$D$10,Table2[],3,FALSE) -> 7.7 | AM10: =Configurator!M7 -> 4 | AN10: =IFERROR(IF(AM10>0,AL10*AM10,""),"") -> 30.8 | AP10: Power Cable | AQ10: =Configurator!$E$10 -> CS-CAB-EU-MLEAD | AR10: =VLOOKUP(Configurator!$D$10,Table2[],3,FALSE) -> 7.7 | AS10: =Configurator!N7 -> 5 | AT10: =IFERROR(IF(AS10>0,AR10*AS10,""),"") -> 38.5
B11: Cradles with Battery Charger | D11: No | E11: =IF(F11=1,VLOOKUP(D11,Table14[],2,FALSE),0) -> 0 | F11: =VLOOKUP(D9,Table813[],24,FALSE) -> 1 | G11: =E11*F11 -> 0 | I11: Spare IEC Sockets | J11: =IF($D$11="Yes",J$10-(J$6/VLOOKUP($D$9,Table813[],25,FALSE)),J$10-(J$6/VLOOKUP($D$9,Table813[],5))) -> 8 | K11: =IF($D$11="Yes",K$10-(K$6/VLOOKUP($D$9,Table813[],25,FALSE)),K$10-(K$6/VLOOKUP($D$9,Table813[],5))) -> 4 | L11: =IF($D$11="Yes",L$10-(L$6/VLOOKUP($D$9,Table813[],25,FALSE)),L$10-(L$6/VLOOKUP($D$9,Table813[],5))) -> 6 | M11: =IF($D$11="Yes",M$10-(M$6/VLOOKUP($D$9,Table813[],25,FALSE)),M$10-(M$6/VLOOKUP($D$9,Table813[],5))) -> 8 | N11: =IF($D$11="Yes",N$10-(N$6/VLOOKUP($D$9,Table813[],25,FALSE)),N$10-(N$6/VLOOKUP($D$9,Table813[],5))) -> 10 | R11: =IF(OR($D$20="Yes",$G$10="NA"),"IEC Lead, Std","") -> IEC Lead, Std | S11: =IF(R11<>"",IF($G$10<>"NA",Device_Cabinet_Data!$F$69,Device_Cabinet_Data!$F$72),"") -> CS-CAB-IEC | T11: =IF($R$11<>"",IF($G$10="EU",VLOOKUP(S11,Table4[],2,FALSE),IF($G$10="UK",VLOOKUP(S11,Table4[],3,FALSE),VLOOKUP(S11,Table4[],4,FALSE))),"") -> 7.7 | U11: =IF(R11<>"",$E$20*$J$7*VLOOKUP(R$5,Table10[],18,FALSE),"") -> 6 | V11: =IFERROR(IF(U$11>0,T11*U11,""),"") -> 46.2 | X11: =IF(OR($D$20="Yes",$G$10="NA"),"IEC Lead, Std","") -> IEC Lead, Std | Y11: =IF(X11<>"",IF($G$10<>"NA",Device_Cabinet_Data!$F$69,Device_Cabinet_Data!$F$72),"") -> CS-CAB-IEC | Z11: =IF(X11<>"",IF($G$10="EU",VLOOKUP(Y11,Table4[],2,FALSE),IF($G$10="UK",VLOOKUP(Y11,Table4[],3,FALSE),VLOOKUP(Y11,Table4[],4,FALSE))),"") -> 7.7 | AA11: =IF(X11<>"",$E$20*$K7*VLOOKUP(X$5,Table10[],18,FALSE),"") -> 6 | AB11: =IFERROR(IF(AA$11>0,Z11*AA11,""),"") -> 46.2 | AD11: =IF(OR($D$20="Yes",$G$10="NA"),"IEC Lead, Std","") -> IEC Lead, Std | AE11: =IF(AD11<>"",IF($G$10<>"NA",Device_Cabinet_Data!$F$69,Device_Cabinet_Data!$F$72),"") -> CS-CAB-IEC | AF11: =IF(X11<>"",IF($G$10="EU",VLOOKUP(AE11,Table4[],2,FALSE),IF($G$10="UK",VLOOKUP(AE11,Table4[],3,FALSE),VLOOKUP(AE11,Table4[],4,FALSE))),"") -> 7.7 | AG11: =IF(AD11<>"",$E$20*$L7*VLOOKUP(AD$5,Table10[],18,FALSE),"") -> 9 | AH11: 69.3 | AJ11: =IF(OR($D$20="Yes",$G$10="NA"),"IEC Lead, Std","") -> IEC Lead, Std | AK11: =IF(AJ11<>"",IF($G$10<>"NA",Device_Cabinet_Data!$F$69,Device_Cabinet_Data!$F$72),"") -> CS-CAB-IEC | AL11: =IF(AJ11<>"",IF($G$10="EU",VLOOKUP(AK11,Table4[],2,FALSE),IF($G$10="UK",VLOOKUP(AK11,Table4[],3,FALSE),VLOOKUP(AK11,Table4[],4,FALSE))),"") -> 7.7 | AM11: =IF(AJ11<>"",$E$20*$M7*VLOOKUP(AJ$5,Table10[],18,FALSE)+IF(AM$14<>"",AM$14,0),"") -> 8 | AN11: 61.6 | AP11: =IF(OR($D$20="Yes",$G$10="NA"),"IEC Lead, Std","") -> IEC Lead, Std | AQ11: =IF(AP11<>"",IF($G$10<>"NA",Device_Cabinet_Data!$F$69,Device_Cabinet_Data!$F$72),"") -> CS-CAB-IEC | AR11: =IF(AP11<>"",IF($G$10="EU",VLOOKUP(AQ11,Table4[],2,FALSE),IF($G$10="UK",VLOOKUP(AQ11,Table4[],3,FALSE),VLOOKUP(AQ11,Table4[],4,FALSE))),"") -> 7.7 | AS11: =IF(AP11<>"",$E$20*$N7*VLOOKUP(AP$5,Table10[],18,FALSE)+IF(AS$14<>"",AS$14,0),"") -> 10 | AT11: 77
B12: Qty of Cradles to be housed | D12: =ROUNDUP(D5/G12,0) -> 20 | F12: =VLOOKUP(D9,Table813[[Device]:[Devices Per Cradle]],5,FALSE) -> 5 | G12: =(VLOOKUP(D9,Table813[[Device]:[Devices Per Cradle]],5,FALSE))-G11 -> 5 | I12: Optimal Cabinet Choice | K12: =OFFSET(INDIRECT(CELL("address",INDEX(Configurator!$R$24:$AT$24,MATCH(MIN(Configurator!$V$24,Configurator!$AB$24,Configurator!$AH$24,Configurator!$AN$24,Configurator!$AT$24),Configurator!$R$24:$AT$24,0)))),-19,-4) -> Extreme | M12: =MIN(Configurator!$V$24,Configurator!$AB$24,Configurator!$AH$24,Configurator!$AN$24,Configurator!$AT$24) -> 16734.84 | R12: =IF(OR($D$20="Yes",$G$10="NA"),"IEC Lead, Long","") -> IEC Lead, Long | S12: =IF(R12<>"",IF($G$10<>"NA",Device_Cabinet_Data!$F$69,Device_Cabinet_Data!$F$72),"") -> CS-CAB-IEC | T12: =IF(R12<>"",IF($G$10="EU",VLOOKUP(S12,Table4[],2,FALSE),IF($G$10="UK",VLOOKUP(S12,Table4[],3,FALSE),VLOOKUP(S12,Table4[],4,FALSE))),"") -> 7.7 | U12: =IF(R12<>"",($E$20*$J$7*VLOOKUP(R$5,Table10[],19,FALSE))-($J$7*$F$20*$F$22)+IF(U14<>"",2*U$14,0),"") -> 4 | V12: =IFERROR(IF(U$12>0,T12*U12,""),"") -> 30.8 | X12: =IF(OR($D$20="Yes",$G$10="NA"),"IEC Lead, Long","") -> IEC Lead, Long | Y12: =IF(X12<>"",IF($G$10<>"NA",Device_Cabinet_Data!$F$69,Device_Cabinet_Data!$F$72),"") -> CS-CAB-IEC | Z12: =IF(X12<>"",IF($G$10="EU",VLOOKUP(Y12,Table4[],2,FALSE),IF($G$10="UK",VLOOKUP(Y12,Table4[],3,FALSE),VLOOKUP(Y12,Table4[],4,FALSE))),"") -> 7.7 | AA12: =IF(X12<>"",($E$20*$K$7*VLOOKUP(X$5,Table10[],19,FALSE))-($K$7*$F$20*$F$22)+IF(AA$14<>"",AA$14,0),"") -> 4 | AB12: =IFERROR(IF(AA$12>0,Z12*AA12,""),"") -> 30.8 | AD12: =IF(OR($D$20="Yes",$G$10="NA"),"IEC Lead, Long","") -> IEC Lead, Long | AE12: =IF(AD12<>"",IF($G$10<>"NA",Device_Cabinet_Data!$F$69,Device_Cabinet_Data!$F$72),"") -> CS-CAB-IEC | AF12: =IF(AD12<>"",IF($G$10="EU",VLOOKUP(AE12,Table4[],2,FALSE),IF($G$10="UK",VLOOKUP(AE12,Table4[],3,FALSE),VLOOKUP(AE12,Table4[],4,FALSE))),"") -> 7.7 | AG12: =IF(AD12<>"",($E$20*$L$7*VLOOKUP(AD$5,Table10[],19,FALSE))-($L$7*$F$20*$F$22*$F$23)+IF(AG$14<>"",AG$14,0),"") -> 3 | AH12: 23.1 | AJ12: =IF(OR($D$20="Yes",$G$10="NA"),"IEC Lead, Long","") -> IEC Lead, Long | AK12: =IF(AJ12<>"",IF($G$10<>"NA",Device_Cabinet_Data!$F$69,Device_Cabinet_Data!$F$72),"") -> CS-CAB-IEC | AL12: =IF(AJ12<>"",IF($G$10="EU",VLOOKUP(AK12,Table4[],2,FALSE),IF($G$10="UK",VLOOKUP(AK12,Table4[],3,FALSE),VLOOKUP(AK12,Table4[],4,FALSE))),"") -> 7.7 | AM12: =IF(AJ12<>"",($E$20*$M$7*VLOOKUP(AJ$5,Table10[],19,FALSE))-($M$7*$F$20*$F$22*$F$23),"") -> 4 | AN12: =IFERROR(IF(AM$12>0,AL12*AM12,""),"") -> 30.8 | AP12: =IF(OR($D$20="Yes",$G$10="NA"),"IEC Lead, Long","") -> IEC Lead, Long | AQ12: =IF(AP12<>"",IF($G$10<>"NA",Device_Cabinet_Data!$F$69,Device_Cabinet_Data!$F$72),"") -> CS-CAB-IEC | AR12: =IF(AP12<>"",IF($G$10="EU",VLOOKUP(AQ12,Table4[],2,FALSE),IF($G$10="UK",VLOOKUP(AQ12,Table4[],3,FALSE),VLOOKUP(AQ12,Table4[],4,FALSE))),"") -> 7.7 | AS12: =IF(AP12<>"",($E$20*$N$7*VLOOKUP(AP$5,Table10[],19,FALSE))-($F$22*$F$23),"") -> 0 | AT12: =IFERROR(IF(AS$11>0,AR12*AS12,""),"") -> 0
B13: AMS Compatible | D13: =IF(F13=1,"Yes","No") -> Yes | E13: 1 | F13: =VLOOKUP(D9,Table813[],33,FALSE) -> 1 | J13: =VLOOKUP($D$9,Table813[],18,FALSE) -> 100 | K13: =VLOOKUP($D$9,Table813[],16,FALSE) -> 50 | L13: =VLOOKUP($D$9,Table813[],14,FALSE) -> 40 | M13: =VLOOKUP($D$9,Table813[],12,FALSE) -> 30 | N13: =VLOOKUP($D$9,Table813[],10,FALSE) -> 20 | R13: =IF($F$20=1,"Stadium Shelves","") -> Stadium Shelves | S13: =IF($F$20=1,VLOOKUP(R$5,Table10[],9,FALSE),"") -> CS-CAB-SHV-EXT-SS | T13: =IF($F$20=1,IF($G$10="EU",VLOOKUP(R$5,Table10[],10,FALSE),IF($G$10="UK",VLOOKUP(R$5,Table10[],11,FALSE),IF($G$10="NA",VLOOKUP(R$5,Table10[],12,FALSE),""))),"") -> 159.6 | U13: =IF($F$20=1,$J$8,"") -> 5 | V13: =IFERROR(IF(U13>0,T13*U13,""),"") -> 798 | X13: =IF($F$20=1,"Stadium Shelves","") -> Stadium Shelves | Y13: =IF($F$20=1,VLOOKUP(X$5,Table10[],9,FALSE),"") -> CS-CAB-SHV-SS | Z13: =IF($F$20=1,IF($G$10="EU",VLOOKUP(X$5,Table10[],10,FALSE),IF($G$10="UK",VLOOKUP(X$5,Table10[],11,FALSE),IF($G$10="NA",VLOOKUP(X$5,Table10[],12,FALSE),""))),"") -> 79.8 | AA13: =IF($F$20=1,$K$8,"") -> 10 | AB13: =IFERROR(IF(AA13>0,Z13*AA13,""),"") -> 798 | AD13: =IF($F$20=1,"Stadium Shelves","") -> Stadium Shelves | AE13: =IF($F$20=1,VLOOKUP(AD$5,Table10[],9,FALSE),"") -> CS-CAB-SHV-SS | AF13: =IF($F$20=1,IF($G$10="EU",VLOOKUP(AD$5,Table10[],10,FALSE),IF($G$10="UK",VLOOKUP(AD$5,Table10[],11,FALSE),IF($G$10="NA",VLOOKUP(AD$5,Table10[],12,FALSE),""))),"") -> 79.8 | AG13: =IF($F$20=1,$L$8,"") -> 12 | AH13: =IFERROR(IF(AG13>0,AF13*AG13,""),"") -> 957.6 | AJ13: =IF($F$20=1,"Stadium Shelves","") -> Stadium Shelves | AK13: =IF($F$20=1,VLOOKUP(AJ$5,Table10[],9,FALSE),"") -> CS-CAB-SHV-SS | AL13: =IF($F$20=1,IF($G$10="EU",VLOOKUP(AJ$5,Table10[],10,FALSE),IF($G$10="UK",VLOOKUP(AJ$5,Table10[],11,FALSE),IF($G$10="NA",VLOOKUP(AJ$5,Table10[],12,FALSE),""))),"") -> 79.8 | AM13: =IF($F$20=1,$M$8,"") -> 12 | AN13: =IFERROR(IF(AM13>0,AL13*AM13,""),"") -> 957.6 | AP13: =IF($F$20=1,"Stadium Shelves","") -> Stadium Shelves | AQ13: =IF($F$20=1,VLOOKUP(AP$5,Table10[],9,FALSE),"") -> CS-CAB-SHV-SS | AR13: =IF($F$20=1,IF($G$10="EU",VLOOKUP(AP$5,Table10[],10,FALSE),IF($G$10="UK",VLOOKUP(AP$5,Table10[],11,FALSE),IF($G$10="NA",VLOOKUP(AP$5,Table10[],12,FALSE),""))),"") -> 79.8 | AS13: =IF($F$20=1,$N$8,"") -> 10 | AT13: =IFERROR(IF(AS13>0,AR13*AS13,""),"") -> 798
B14: Access Management System | D14: Yes | H14: Cost, Space and Capacity considerations | I14: Lowest Price | L14: =OFFSET(INDIRECT(CELL("address",INDEX(Configurator!$R$24:$AT$24,MATCH(MIN(Configurator!$V$24,Configurator!$AB$24,Configurator!$AH$24,Configurator!$AN$24,Configurator!$AT$24),Configurator!$R$24:$AT$24,0)))),-19,-4) -> Extreme | M14: =MIN(Configurator!$V$24,Configurator!$AB$24,Configurator!$AH$24,Configurator!$AN$24,Configurator!$AT$24) -> 16734.84 | R14: =IF(VLOOKUP($D$9,Table813[],21,FALSE)=1,"Extra Std Shelf","") ->  | S14: =IF(R14<>"",VLOOKUP(R5,Table10[],14,FALSE),"") ->  | T14: =IF(R$14<>"",IF($G$10="EU",VLOOKUP(R$5,Table10[],15,FALSE),IF($G$10="UK",VLOOKUP(R$5,Table10[],16,FALSE),IF($G$10="NA",VLOOKUP(R$5,Table10[],17,FALSE),""))),"") ->  | U14: =IF(R14<>"",IF(U9<>"",SUM(U8:U9),U8),"") ->  | X14: =IF(VLOOKUP($D$9,Table813[],21,FALSE)=1,"Extra Std Shelf","") ->  | Y14: =IF(X14<>"",VLOOKUP(X5,Table10[],14,FALSE),"") ->  | Z14: =IF(X$14<>"",IF($G$10="EU",VLOOKUP(X$5,Table10[],15,FALSE),IF($G$10="UK",VLOOKUP(X$5,Table10[],16,FALSE),IF($G$10="NA",VLOOKUP(X$5,Table10[],17,FALSE),""))),"") ->  | AA14: =IF(X14<>"",IF(AA9<>"",SUM(AA8:AA9),AA8),"") ->  | AD14: =IF(VLOOKUP($D$9,Table813[],21,FALSE)=1,"Extra Std Shelf","") ->  | AE14: =IF(AD14<>"",VLOOKUP(AD5,Table10[],14,FALSE),"") ->  | AF14: =IF(AD$14<>"",IF($G$10="EU",VLOOKUP(AD$5,Table10[],15,FALSE),IF($G$10="UK",VLOOKUP(AD$5,Table10[],16,FALSE),IF($G$10="NA",VLOOKUP(AD$5,Table10[],17,FALSE),""))),"") ->  | AG14: =IF(AD14<>"",IF(AG9<>"",SUM(AG8:AG9),AG8),"") ->  | AH14: =IFERROR(IF(AG14>0,AF14*AG14,""),"") ->  | AJ14: =IF(VLOOKUP($D$9,Table813[],21,FALSE)=1,"Extra Std Shelf","") ->  | AK14: =IF(AJ14<>"",VLOOKUP(AJ5,Table10[],14,FALSE),"") ->  | AL14: =IF(AJ$14<>"",IF($G$10="EU",VLOOKUP(AJ$5,Table10[],15,FALSE),IF($G$10="UK",VLOOKUP(AJ$5,Table10[],16,FALSE),IF($G$10="NA",VLOOKUP(AJ$5,Table10[],17,FALSE),""))),"") ->  | AM14: =IF(AJ14<>"",IF(AM9<>"",SUM(AM8:AM9),AM8),"") ->  | AN14: =IFERROR(IF(AM14>0,AL14*AM14,""),"") ->  | AP14: =IF(VLOOKUP($D$9,Table813[],21,FALSE)=1,"Extra Std Shelf","") ->  | AQ14: =IF(AP14<>"",VLOOKUP(AP5,Table10[],14,FALSE),"") ->  | AR14: =IF(AP$14<>"",IF($G$10="EU",VLOOKUP(AP$5,Table10[],15,FALSE),IF($G$10="UK",VLOOKUP(AP$5,Table10[],16,FALSE),IF($G$10="NA",VLOOKUP(AP$5,Table10[],17,FALSE),""))),"") ->  | AS14: =IF(AP14<>"",IF(AS9<>"",SUM(AS8:AS9),AS8),"") -> 
B15: AMS License Duration | D15: 3 | I15: Smallest Floor Space | L15: =OFFSET(INDIRECT(CELL("address",INDEX(Configurator!$R$25:$AT$25,MATCH(MIN(Configurator!$R$25,Configurator!$X$25,Configurator!$AD$25,Configurator!$AJ$25,Configurator!$AP$25),Configurator!$R$25:$AT$25,0)))),-20,0) -> Extreme | M15: =_xlfn.CONCAT(MIN(Configurator!R25,Configurator!X25,Configurator!AD25,Configurator!AJ25,Configurator!AP25)," ",N18) -> 0.52 m² | R15: =IF($D$14="Yes","AMS Software","") -> AMS Software | S15: =IF($D$14="Yes",VLOOKUP($D$15,Table19[[Years]:[Software]],2,FALSE),"") -> CS-ACS-MGTB-3 | T15: =IF($D$14="Yes",IF($G$10="UK",VLOOKUP($D$15,Table19[],3,FALSE),IF($G$10="EU",VLOOKUP($D$15,Table19[],4,FALSE),IF($G$10="NA",VLOOKUP($D$15,Table19[],5,FALSE),""))),"") -> 83.21 | U15: =IF($D$14="Yes",$D$5,"") -> 100 | V15: 8321 | X15: =IF($D$14="Yes","AMS Software","") -> AMS Software | Y15: =IF($D$14="Yes",VLOOKUP($D$15,Table19[[Years]:[Software]],2,FALSE),"") -> CS-ACS-MGTB-3 | Z15: =IF($D$14="Yes",IF($G$10="UK",VLOOKUP($D$15,Table19[],3,FALSE),IF($G$10="EU",VLOOKUP($D$15,Table19[],4,FALSE),IF($G$10="NA",VLOOKUP($D$15,Table19[],5,FALSE),""))),"") -> 83.21 | AA15: =IF($D$14="Yes",$D$5,"") -> 100 | AB15: 8321 | AD15: =IF($D$14="Yes","AMS Software","") -> AMS Software | AE15: =IF($D$14="Yes",VLOOKUP($D$15,Table19[[Years]:[Software]],2,FALSE),"") -> CS-ACS-MGTB-3 | AF15: =IF($D$14="Yes",IF($G$10="UK",VLOOKUP($D$15,Table19[],3,FALSE),IF($G$10="EU",VLOOKUP($D$15,Table19[],4,FALSE),IF($G$10="NA",VLOOKUP($D$15,Table19[],5,FALSE),""))),"") -> 83.21 | AG15: =IF($D$14="Yes",$D$5,"") -> 100 | AH15: =IFERROR(IF(AG15>0,AF15*AG15,""),"") -> 8321 | AJ15: =IF($D$14="Yes","AMS Software","") -> AMS Software | AK15: =IF($D$14="Yes",VLOOKUP($D$15,Table19[[Years]:[Software]],2,FALSE),"") -> CS-ACS-MGTB-3 | AL15: =IF($D$14="Yes",IF($G$10="UK",VLOOKUP($D$15,Table19[],3,FALSE),IF($G$10="EU",VLOOKUP($D$15,Table19[],4,FALSE),IF($G$10="NA",VLOOKUP($D$15,Table19[],5,FALSE),""))),"") -> 83.21 | AM15: =IF($D$14="Yes",$D$5,"") -> 100 | AN15: =IFERROR(IF(AM15>0,AL15*AM15,""),"") -> 8321 | AP15: =IF($D$14="Yes","AMS Software","") -> AMS Software | AQ15: =IF($D$14="Yes",VLOOKUP($D$15,Table19[[Years]:[Software]],2,FALSE),"") -> CS-ACS-MGTB-3 | AR15: =IF($D$14="Yes",IF($G$10="UK",VLOOKUP($D$15,Table19[],3,FALSE),IF($G$10="EU",VLOOKUP($D$15,Table19[],4,FALSE),IF($G$10="NA",VLOOKUP($D$15,Table19[],5,FALSE),""))),"") -> 83.21 | AS15: =IF($D$14="Yes",$D$5,"") -> 100 | AT15: 8321
B16: Use CC6000 | D16: Yes | E16: 0 | F16: =IF(D16="Yes",1,0) -> 1 | I16: Smallest wall area | L16: =OFFSET(INDIRECT(CELL("address",INDEX(Configurator!$R$26:$AS$26,MATCH(MIN(Configurator!R26,Configurator!X26,Configurator!AD26,Configurator!AJ26,Configurator!AP26),Configurator!$R$26:$AS$26,0)))),-21,0) -> Extreme | M16: =_xlfn.CONCAT(MIN(Configurator!$R$26,Configurator!$X$26,Configurator!$AD$26,Configurator!$AJ$26,Configurator!$AP$26)," ",N18) -> 2.29 m² | R16: =IF(AND($G$10<>"NA",$D16="Yes"),"CC6000","") -> CC6000 | S16: =IF(AND($G$10<>"NA",$D$16="Yes"),VLOOKUP(R$16,Table16[],2,FALSE),"") -> CC6000-10-3200LCWW | T16: =IF(AND($D$16="Yes",$G$10<>"NA"),IF($G$10="EU",VLOOKUP(R$16,Table16[],3,FALSE),IF($G$10="UK",VLOOKUP(R$16,Table16[],4,FALSE))),"") -> 1513.49 | U16: =IF(AND($D$16="Yes",$G$10<>"NA"),ROUNDUP($J$7/$D$17,0),"") -> 1 | V16: 1513.49 | X16: =IF(AND($G$10<>"NA",$D16="Yes"),"CC6000","") -> CC6000 | Y16: =IF(AND($G$10<>"NA",$D$16="Yes"),VLOOKUP(X$16,Table16[],2,FALSE),"") -> CC6000-10-3200LCWW | Z16: =IF(AND($D$16="Yes",$G$10<>"NA"),IF($G$10="EU",VLOOKUP(X16,Table16[],3,FALSE),IF($G$10="UK",VLOOKUP(X16,Table16[],4,FALSE))),"") -> 1513.49 | AA16: =IF(AND($D$16="Yes",$G$10<>"NA"),ROUNDUP($K$7/$D$17,0),"") -> 1 | AB16: 1513.49 | AD16: =IF(AND($G$10<>"NA",$D16="Yes"),"CC6000","") -> CC6000 | AE16: =IF(AND($G$10<>"NA",$D$16="Yes"),VLOOKUP(AD$16,Table16[],2,FALSE),"") -> CC6000-10-3200LCWW | AF16: =IF(AND($D$16="Yes",$G$10<>"NA"),IF($G$10="EU",VLOOKUP(AD16,Table16[],3,FALSE),IF($G$10="UK",VLOOKUP(AD16,Table16[],4,FALSE))),"") -> 1513.49 | AG16: =IF(AND($D$16="Yes",$G$10<>"NA"),ROUNDUP($L$7/$D$17,0),"") -> 2 | AH16: =IFERROR(IF(AG16>0,AF16*AG16,""),"") -> 3026.98 | AJ16: =IF(AND($G$10<>"NA",$D16="Yes"),"CC6000","") -> CC6000 | AK16: =IF(AND($G$10<>"NA",$D$16="Yes"),VLOOKUP(AJ$16,Table16[],2,FALSE),"") -> CC6000-10-3200LCWW | AL16: =IF(AND($D$16="Yes",$G$10<>"NA"),IF($G$10="EU",VLOOKUP(AJ16,Table16[],3,FALSE),IF($G$10="UK",VLOOKUP(AJ16,Table16[],4,FALSE))),"") -> 1513.49 | AM16: =IF(AND($D$16="Yes",$G$10<>"NA"),ROUNDUP($M$7/$D$17,0),"") -> 2 | AN16: =IFERROR(IF(AM16>0,AL16*AM16,""),"") -> 3026.98 | AP16: =IF(AND($G$10<>"NA",$D16="Yes"),"CC6000","") -> CC6000 | AQ16: =IF(AND($G$10<>"NA",$D$16="Yes"),VLOOKUP(AP$16,Table16[],2,FALSE),"") -> CC6000-10-3200LCWW | AR16: =IF(AND($D$16="Yes",$G$10<>"NA"),IF($G$10="EU",VLOOKUP(AP16,Table16[],3,FALSE),IF($G$10="UK",VLOOKUP(AP16,Table16[],4,FALSE))),"") -> 1513.49 | AS16: =IF(AND($D$16="Yes",$G$10<>"NA"),ROUNDUP($N$7/$D$17,0),"") -> 3 | AT16: 4540.47
B17: Cabinets per CC6000 | D17: 2 | E17: =VLOOKUP(D18,Table5[],2,FALSE) -> 1 | I17: Greatest expansion | L17: =OFFSET(INDIRECT(CELL("address",INDEX($J$9:$N$9,MATCH(MAX($J$9:N9),$J$9:$N$9,0)))),-4,0) -> Large | M17: =MAX(J9,K9,L9,M9,N9) -> 20 | R17: =IF(AND($G$10<>"NA",$D$16="Yes"),"CC6000 PSU","") -> CC6000 PSU | S17: =IF(AND($G$10<>"NA",$D$16="Yes"),VLOOKUP(R17,Table16[],2,FALSE),"") -> PWR-BUA5V16W0WW | T17: =IF(AND($D$16="Yes",$G$10<>"NA"),IF($G$10="EU",VLOOKUP(R17,Table16[],3,FALSE),IF($G$10="UK",VLOOKUP(R17,Table16[],4,FALSE))),"") -> 31.09 | U17: =IF(AND($D$16="Yes",$G$10<>"NA"),ROUNDUP($J$7/$D$17,0),"") -> 1 | V17: 31.09 | X17: =IF(AND($G$10<>"NA",$D$16="Yes"),"CC6000 PSU","") -> CC6000 PSU | Y17: =IF(AND($G$10<>"NA",$D$16="Yes"),VLOOKUP(X17,Table16[],2,FALSE),"") -> PWR-BUA5V16W0WW | Z17: =IF(AND($D$16="Yes",$G$10<>"NA"),IF($G$10="EU",VLOOKUP(X17,Table16[],3,FALSE),IF($G$10="UK",VLOOKUP(X17,Table16[],4,FALSE))),"") -> 31.09 | AA17: =IF(AND($D$16="Yes",$G$10<>"NA"),ROUNDUP($K$7/$D$17,0),"") -> 1 | AB17: 31.09 | AD17: =IF(AND($G$10<>"NA",$D$16="Yes"),"CC6000 PSU","") -> CC6000 PSU | AE17: =IF(AND($G$10<>"NA",$D$16="Yes"),VLOOKUP(AD17,Table16[],2,FALSE),"") -> PWR-BUA5V16W0WW | AF17: =IF(AND($D$16="Yes",$G$10<>"NA"),IF($G$10="EU",VLOOKUP(AD17,Table16[],3,FALSE),IF($G$10="UK",VLOOKUP(AD17,Table16[],4,FALSE))),"") -> 31.09 | AG17: =IF(AND($D$16="Yes",$G$10<>"NA"),ROUNDUP($L$7/$D$17,0),"") -> 2 | AH17: =IFERROR(IF(AG17>0,AF17*AG17,""),"") -> 62.18 | AJ17: =IF(AND($G$10<>"NA",$D$16="Yes"),"CC6000 PSU","") -> CC6000 PSU | AK17: =IF(AND($G$10<>"NA",$D$16="Yes"),VLOOKUP(AJ17,Table16[],2,FALSE),"") -> PWR-BUA5V16W0WW | AL17: =IF(AND($D$16="Yes",$G$10<>"NA"),IF($G$10="EU",VLOOKUP(AJ17,Table16[],3,FALSE),IF($G$10="UK",VLOOKUP(AJ17,Table16[],4,FALSE))),"") -> 31.09 | AM17: =IF(AND($D$16="Yes",$G$10<>"NA"),ROUNDUP($M$7/$D$17,0),"") -> 2 | AN17: =IFERROR(IF(AM17>0,AL17*AM17,""),"") -> 62.18 | AP17: =IF(AND($G$10<>"NA",$D$16="Yes"),"CC6000 PSU","") -> CC6000 PSU | AQ17: =IF(AND($G$10<>"NA",$D$16="Yes"),VLOOKUP(AP17,Table16[],2,FALSE),"") -> PWR-BUA5V16W0WW | AR17: =IF(AND($D$16="Yes",$G$10<>"NA"),IF($G$10="EU",VLOOKUP(AP17,Table16[],3,FALSE),IF($G$10="UK",VLOOKUP(AP17,Table16[],4,FALSE))),"") -> 31.09 | AS17: =IF(AND($D$16="Yes",$G$10<>"NA"),ROUNDUP($N$7/$D$17,0),"") -> 3 | AT17: 93.27
B18: CC6000 Mount | D18: Yes | E18: 1 | N18: =IF($G$10<>"NA",Device_Cabinet_Data!$R$69,Device_Cabinet_Data!$R$71) -> m² | R18: =IF(AND($G$10<>"NA",$D$16="Yes"),"CC6000 DC Cable","") -> CC6000 DC Cable | S18: =IF(AND($G$10<>"NA",$D$16="Yes"),VLOOKUP(R18,Table16[],2,FALSE),"") -> CBL-DC-383A1-01 | T18: =IF(AND($D$16="Yes",$G$10<>"NA"),IF($G$10="EU",VLOOKUP(R18,Table16[],3,FALSE),IF($G$10="UK",VLOOKUP(R18,Table16[],4,FALSE))),"") -> 6.54 | U18: =IF(AND($D$16="Yes",$G$10<>"NA"),ROUNDUP($J$7/$D$17,0),"") -> 1 | V18: 6.54 | X18: =IF(AND($G$10<>"NA",$D$16="Yes"),"CC6000 DC Cable","") -> CC6000 DC Cable | Y18: =IF(AND($G$10<>"NA",$D$16="Yes"),VLOOKUP(X18,Table16[],2,FALSE),"") -> CBL-DC-383A1-01 | Z18: =IF(AND($D$16="Yes",$G$10<>"NA"),IF($G$10="EU",VLOOKUP(X18,Table16[],3,FALSE),IF($G$10="UK",VLOOKUP(X18,Table16[],4,FALSE))),"") -> 6.54 | AA18: =IF(AND($D$16="Yes",$G$10<>"NA"),ROUNDUP($K$7/$D$17,0),"") -> 1 | AB18: 6.54 | AD18: =IF(AND($G$10<>"NA",$D$16="Yes"),"CC6000 DC Cable","") -> CC6000 DC Cable | AE18: =IF(AND($G$10<>"NA",$D$16="Yes"),VLOOKUP(AD18,Table16[],2,FALSE),"") -> CBL-DC-383A1-01 | AF18: =IF(AND($D$16="Yes",$G$10<>"NA"),IF($G$10="EU",VLOOKUP(AD18,Table16[],3,FALSE),IF($G$10="UK",VLOOKUP(AD18,Table16[],4,FALSE))),"") -> 6.54 | AG18: =IF(AND($D$16="Yes",$G$10<>"NA"),ROUNDUP($L$7/$D$17,0),"") -> 2 | AH18: 13.08 | AJ18: =IF(AND($G$10<>"NA",$D$16="Yes"),"CC6000 DC Cable","") -> CC6000 DC Cable | AK18: =IF(AND($G$10<>"NA",$D$16="Yes"),VLOOKUP(AJ18,Table16[],2,FALSE),"") -> CBL-DC-383A1-01 | AL18: =IF(AND($D$16="Yes",$G$10<>"NA"),IF($G$10="EU",VLOOKUP(AJ18,Table16[],3,FALSE),IF($G$10="UK",VLOOKUP(AJ18,Table16[],4,FALSE))),"") -> 6.54 | AM18: =IF(AND($D$16="Yes",$G$10<>"NA"),ROUNDUP($M$7/$D$17,0),"") -> 2 | AN18: 13.08 | AP18: =IF(AND($G$10<>"NA",$D$16="Yes"),"CC6000 DC Cable","") -> CC6000 DC Cable | AQ18: =IF(AND($G$10<>"NA",$D$16="Yes"),VLOOKUP(AP18,Table16[],2,FALSE),"") -> CBL-DC-383A1-01 | AR18: =IF(AND($D$16="Yes",$G$10<>"NA"),IF($G$10="EU",VLOOKUP(AP18,Table16[],3,FALSE),IF($G$10="UK",VLOOKUP(AP18,Table16[],4,FALSE))),"") -> 6.54 | AS18: =IF(AND($D$16="Yes",$G$10<>"NA"),ROUNDUP($N$7/$D$17,0),"") -> 3 | AT18: 19.62
B19: Stadium Compatible | D19: =IF(F19=1,"Yes","No") -> Yes | E19: 1 | F19: =VLOOKUP(D9,Table813[],20,FALSE) -> 1 | H19: Alternative Mixed Cabinet Type Solution | J19: Extreme | K19: X-Large | L19: Large | M19: Midi | N19: Small | R19: =IF($D$18="Yes","CC6000 Bracket","") -> CC6000 Bracket | S19: =IF(AND($D$16="Yes",$D$18="Yes"),VLOOKUP(R$5,Table10[],4,FALSE),"") -> CS-CAB-MNTG-C6-R2 | T19: =IF($S19<>"",IF($G$10="EU",VLOOKUP(R$5,Table10[],5,FALSE),IF($G$10="UK",VLOOKUP(R$5,Table10[],6,FALSE),IF($G$10="NA",VLOOKUP(R$5,Table10[],7,FALSE),""))),"") -> 221.54 | U19: =IF(S$19<>"",ROUNDUP($J$7/$D$17,0),"") -> 1 | V19: 221.54 | X19: =IF($D$18="Yes","CC6000 Bracket","") -> CC6000 Bracket | Y19: =IF(AND($D$16="Yes",$D$18="Yes"),VLOOKUP(X$5,Table10[],4,FALSE),"") -> CS-CAB-MNTG-C6-R2 | Z19: =IF($S19<>"",IF($G$10="EU",VLOOKUP(X$5,Table10[],5,FALSE),IF($G$10="UK",VLOOKUP(X$5,Table10[],6,FALSE),IF($G$10="NA",VLOOKUP(X$5,Table10[],7,FALSE),""))),"") -> 221.54 | AA19: =IF(Y$19<>"",ROUNDUP($K$7/$D$17,0),"") -> 1 | AB19: 221.54 | AD19: =IF($D$18="Yes","CC6000 Bracket","") -> CC6000 Bracket | AE19: =IF(AND($D$16="Yes",$D$18="Yes"),VLOOKUP(AD$5,Table10[],4,FALSE),"") -> CS-CAB-MNTG-C6-R1 | AF19: =IF($S19<>"",IF($G$10="EU",VLOOKUP(AD$5,Table10[],5,FALSE),IF($G$10="UK",VLOOKUP(AD$5,Table10[],6,FALSE),IF($G$10="NA",VLOOKUP(AD$5,Table10[],7,FALSE),""))),"") -> 221.54 | AG19: =IF(AE$19<>"",ROUNDUP($L$7/$D$17,0),"") -> 2 | AH19: =IFERROR(IF(AG19>0,AF19*AG19,""),"") -> 443.08 | AJ19: =IF($D$18="Yes","CC6000 Bracket","") -> CC6000 Bracket | AK19: =IF(AND($D$16="Yes",$D$18="Yes"),VLOOKUP(AJ$5,Table10[],4,FALSE),"") -> CS-CAB-MNTG-C6 | AL19: =IF($S19<>"",IF($G$10="EU",VLOOKUP(AJ$5,Table10[],5,FALSE),IF($G$10="UK",VLOOKUP(AJ$5,Table10[],6,FALSE),IF($G$10="NA",VLOOKUP(AJ$5,Table10[],7,FALSE),""))),"") -> 78.4 | AM19: =IF(AK$19<>"",ROUNDUP($M$7/$D$17,0),"") -> 2 | AN19: =IFERROR(IF(AM19>0,AL19*AM19,""),"") -> 156.8 | AP19: =IF($D$18="Yes","CC6000 Bracket","") -> CC6000 Bracket | AQ19: =IF(AND($D$16="Yes",$D$18="Yes"),VLOOKUP(AP$5,Table10[],4,FALSE),"") -> CS-CAB-MNTG-C6 | AR19: =IF($S19<>"",IF($G$10="EU",VLOOKUP(AP$5,Table10[],5,FALSE),IF($G$10="UK",VLOOKUP(AP$5,Table10[],6,FALSE),IF($G$10="NA",VLOOKUP(AP$5,Table10[],7,FALSE),""))),"") -> 78.4 | AS19: =IF(AQ$19<>"",ROUNDUP($N$7/$D$17,0),"") -> 3 | AT19: 235.2
B20: Use Stadium Shelves | D20: Yes | E20: =IF(AND($D$20="Yes",$G$10="NA"),2,1) -> 1 | F20: =IF(AND($D$20="Yes",F19=1),1,0) -> 1 | I20: Devices per cabinet | J20: =J6 -> 100 | K20: =K6 -> 50 | L20: =L6 -> 40 | M20: =M6 -> 30 | N20: =N6 -> 20 | R20: =IF(AND($G$10<>"NA",$D$16="Yes"),"IEC Lead CC6000","") -> IEC Lead CC6000 | S20: =IF(AND($D$16="Yes",$G$10<>"NA"),IF($G$10<>"NA",Device_Cabinet_Data!$F$71,Device_Cabinet_Data!$F$74),"") -> CS-CC6-IEC | T20: =IF($S$20<>"",IF($D$16="Yes", IF($G$10="EU",VLOOKUP(S20,Table4[],2,FALSE),IF($G$10="UK",VLOOKUP(S20,Table4[],3,FALSE),VLOOKUP(S20,Table4[],4,FALSE))),""),"") -> 7.7 | U20: =IF(AND($D$16="Yes",$G$10<>"NA"),ROUNDUP($J$7/$D$17,0),"") -> 1 | V20: 7.7 | X20: =IF(AND($G$10<>"NA",$D$16="Yes"),"IEC Lead CC6000","") -> IEC Lead CC6000 | Y20: =IF(AND($D$16="Yes",$G$10<>"NA"),IF($G$10<>"NA",Device_Cabinet_Data!$F$71,Device_Cabinet_Data!$F$74),"") -> CS-CC6-IEC | Z20: =IF($Y$20<>"",IF($D$16="Yes", IF($G$10="EU",VLOOKUP(Y20,Table4[],2,FALSE),IF($G$10="UK",VLOOKUP(Y20,Table4[],3,FALSE),VLOOKUP(Y20,Table4[],4,FALSE))),""),"") -> 7.7 | AA20: =IF(AND($D$16="Yes",$G$10<>"NA"),ROUNDUP($K$7/$D$17,0),"") -> 1 | AB20: 7.7 | AD20: =IF(AND($G$10<>"NA",$D$16="Yes"),"IEC Lead CC6000","") -> IEC Lead CC6000 | AE20: =IF(AND($D$16="Yes",$G$10<>"NA"),IF($G$10<>"NA",Device_Cabinet_Data!$F$71,Device_Cabinet_Data!$F$74),"") -> CS-CC6-IEC | AF20: =IF($AE$20<>"",IF($D$16="Yes", IF($G$10="EU",VLOOKUP(AE20,Table4[],2,FALSE),IF($G$10="UK",VLOOKUP(AE20,Table4[],3,FALSE),VLOOKUP(AE20,Table4[],4,FALSE))),""),"") -> 7.7 | AG20: =IF(AND($D$16="Yes",$G$10<>"NA"),ROUNDUP($L$7/$D$17,0),"") -> 2 | AH20: =IFERROR(IF(AG20>0,AF20*AG20,""),"") -> 15.4 | AJ20: =IF(AND($G$10<>"NA",$D$16="Yes"),"IEC Lead CC6000","") -> IEC Lead CC6000 | AK20: =IF(AND($D$16="Yes",$G$10<>"NA"),IF($G$10<>"NA",Device_Cabinet_Data!$F$71,Device_Cabinet_Data!$F$74),"") -> CS-CC6-IEC | AL20: =IF($AK$20<>"",IF($D$16="Yes", IF($G$10="EU",VLOOKUP(AK20,Table4[],2,FALSE),IF($G$10="UK",VLOOKUP(AK20,Table4[],3,FALSE),VLOOKUP(AK20,Table4[],4,FALSE))),""),"") -> 7.7 | AM20: =IF(AND($D$16="Yes",$G$10<>"NA"),ROUNDUP($M$7/$D$17,0),"") -> 2 | AN20: =IFERROR(IF(AM20>0,AL20*AM20,""),"") -> 15.4 | AP20: =IF(AND($G$10<>"NA",$D$16="Yes"),"IEC Lead CC6000","") -> IEC Lead CC6000 | AQ20: =IF(AND($D$16="Yes",$G$10<>"NA"),IF($G$10<>"NA",Device_Cabinet_Data!$F$71,Device_Cabinet_Data!$F$74),"") -> CS-CC6-IEC | AR20: =IF($AQ$20<>"",IF($D$16="Yes", IF($G$10="EU",VLOOKUP(AQ20,Table4[],2,FALSE),IF($G$10="UK",VLOOKUP(AQ20,Table4[],3,FALSE),VLOOKUP(AQ20,Table4[],4,FALSE))),""),"") -> 7.7 | AS20: =IF(AND($D$16="Yes",$G$10<>"NA"),ROUNDUP($N$7/$D$17,0),"") -> 3 | AT20: 23.1
B21: Cradle Lock Compatible | D21: =IF(F21=1,"Yes", "No") -> Yes | F21: =VLOOKUP(D9,Table813[],2,FALSE) -> 1 | I21: No of Main Cabinets | J21: =IFERROR(IF(INT($D$5/J$6)=0,"1",INT($D$5/J$6)),"") -> 1 | K21: =IFERROR(IF(INT($D$5/K$6)=0,"1",INT($D$5/K$6)),"") -> 2 | L21: =IFERROR(IF(INT($D$5/L$6)=0,"1",INT($D$5/L$6)),"") -> 2 | M21: =IFERROR(IF(INT($D$5/M$6)=0,"1",INT($D$5/M$6)),"") -> 3 | N21: =IFERROR(IF(INT($D$5/N$6)=0,"1",INT($D$5/N$6)),"") -> 5 | R21: =IF($D$22="Yes","Cradle Lock","") ->  | S21: =IF($D$22="Yes",IF($D$11="No",VLOOKUP($D$9,Table813[[Device]:[Cradle Lock - Toaster]],22,FALSE),VLOOKUP($D$9,Table813[[Device]:[Cradle Lock - Toaster]],23,FALSE)),"") ->  | T21: =IF($D$22="Yes",IF($G$10="NA",VLOOKUP(S$21,Table15[],3,FALSE),VLOOKUP(S$21,Table15[],2,FALSE)),"") ->  | U21: =IF($D$22="Yes",$D$12,"") ->  | X21: =IF($D$22="Yes","Cradle Lock","") ->  | Y21: =IF($D$22="Yes",IF($D$11="No",VLOOKUP($D$9,Table813[[Device]:[Cradle Lock - Toaster]],22,FALSE),VLOOKUP($D$9,Table813[[Device]:[Cradle Lock - Toaster]],23,FALSE)),"") ->  | Z21: =IF($D$22="Yes",IF($G$10="NA",VLOOKUP(Y$21,Table15[],3,FALSE),VLOOKUP(Y$21,Table15[],2,FALSE)),"") ->  | AA21: =IF($D$22="Yes",$D$12,"") ->  | AD21: =IF($D$22="Yes","Cradle Lock","") ->  | AE21: =IF($D$22="Yes",IF($D$11="No",VLOOKUP($D$9,Table813[[Device]:[Cradle Lock - Toaster]],22,FALSE),VLOOKUP($D$9,Table813[[Device]:[Cradle Lock - Toaster]],23,FALSE)),"") ->  | AF21: =IF($D$22="Yes",IF($G$10="NA",VLOOKUP(AE$21,Table15[],3,FALSE),VLOOKUP(AE$21,Table15[],2,FALSE)),"") ->  | AG21: =IF($D$22="Yes",$D$12,"") ->  | AH21: =IFERROR(IF(AG21>0,AF21*AG21,""),"") ->  | AJ21: =IF($D$22="Yes","Cradle Lock","") ->  | AK21: =IF($D$22="Yes",IF($D$11="No",VLOOKUP($D$9,Table813[[Device]:[Cradle Lock - Toaster]],22,FALSE),VLOOKUP($D$9,Table813[[Device]:[Cradle Lock - Toaster]],23,FALSE)),"") ->  | AL21: =IF($D$22="Yes",IF($G$10="NA",VLOOKUP(AK$21,Table15[],3,FALSE),VLOOKUP(AK$21,Table15[],2,FALSE)),"") ->  | AM21: =IF($D$22="Yes",$D$12,"") ->  | AN21: =IFERROR(IF(AM21>0,AL21*AM21,""),"") ->  | AP21: =IF($D$22="Yes","Cradle Lock","") ->  | AQ21: =IF($D$22="Yes",IF($D$11="No",VLOOKUP($D$9,Table813[[Device]:[Cradle Lock - Toaster]],22,FALSE),VLOOKUP($D$9,Table813[[Device]:[Cradle Lock - Toaster]],23,FALSE)),"") ->  | AR21: =IF($D$22="Yes",IF($G$10="NA",VLOOKUP(AQ$21,Table15[],3,FALSE),VLOOKUP(AQ$21,Table15[],2,FALSE)),"") ->  | AS21: =IF($D$22="Yes",$D$12,"") -> 
B22: With Cradle Locks | D22: No | F22: =IF(D22="Yes",1,0) -> 0 | I22: Remainder | J22: =IF($D$5-(J21*J6)>0,$D$5-(J21*J6),0) -> 0 | K22: =IF($D$5-(K21*K6)>0,$D$5-(K21*K6),0) -> 0 | L22: =IF($D$5-(L21*L6)>0,$D$5-(L21*L6),0) -> 20 | M22: =IF($D$5-(M21*M6)>0,$D$5-(M21*M6),0) -> 10 | N22: =IF($D$5-(N21*N6)>0,$D$5-(N21*N6),0) -> 0 | R22: =IF($D$23="Base","Cabinet Base",IF($D$23="Wall","Wall Mounted","")) ->  | S22: =IF($D$23="Base",VLOOKUP(R5,Table10[],3,FALSE),IF($D$23="Wall","Not Compatible","")) ->  | T22: =IF($D$23="Yes",IF($G$10="EU",VLOOKUP(R$5,Table10[],22,FALSE),IF($G$10="UK",VLOOKUP(R$5,Table10[],23,FALSE),VLOOKUP(R$5,Table10[],24,FALSE))),"") ->  | U22: =IF(AND($D$23="Yes",S22<>"Not Compatible"),J7,"") ->  | X22: =IF($D$23="Base","Cabinet Base",IF($D$23="Wall","Wall Mounted","")) ->  | Y22: =IF($D$23="Base",VLOOKUP(X5,Table10[],3,FALSE),IF($D$23="Wall","Not Compatible","")) ->  | Z22: =IF($D$23="Yes",IF($G$10="EU",VLOOKUP(X$5,Table10[],22,FALSE),IF($G$10="UK",VLOOKUP(X$5,Table10[],23,FALSE),VLOOKUP(X$5,Table10[],24,FALSE))),"") ->  | AA22: =IF(AND($D$23="Yes",Y22<>"Not Compatible"),K7,"") ->  | AD22: =IF($D$23="Base","Cabinet Base",IF($D$23="Wall","Wall Mounted","")) ->  | AE22: =IF($D$23="Base",VLOOKUP(AD5,Table10[],3,FALSE),IF($D$23="Wall","Not Compatible","")) ->  | AF22: =IF($D$23="Yes",IF($G$10="EU",VLOOKUP(AD$5,Table10[],22,FALSE),IF($G$10="UK",VLOOKUP(AD$5,Table10[],23,FALSE),VLOOKUP(AD$5,Table10[],24,FALSE))),"") ->  | AG22: =IF(AND($D$23="Base",AE22<>"Not Compatible"),L7,"") ->  | AH22: =IFERROR(IF(AG22>0,AF22*AG22,""),"") ->  | AJ22: =IF($D$23="Base","Cabinet Base",IF($D$23="Wall","Wall Mounted","")) ->  | AK22: =IF($D$23="Base",VLOOKUP(AJ5,Table10[],3,FALSE),IF($D$23="Wall","Included","")) ->  | AL22: =IF($D$23="Yes",IF($G$10="EU",VLOOKUP(AJ$5,Table10[],22,FALSE),IF($G$10="UK",VLOOKUP(AJ$5,Table10[],23,FALSE),VLOOKUP(AJ$5,Table10[],24,FALSE))),"") ->  | AM22: =IF(AND($D$23="Base",AK22<>"Not Compatible"),M7,"") ->  | AN22: =IFERROR(IF(AM22>0,AL22*AM22,""),"") ->  | AP22: =IF($D$23="Base","Cabinet Base",IF($D$23="Wall","Wall Mounted","")) ->  | AQ22: =IF($D$23="Base",VLOOKUP(AP5,Table10[],3,FALSE),IF($D$23="Wall","Included","")) ->  | AR22: =IF($D$23="Yes",IF($G$10="EU",VLOOKUP(AP$5,Table10[],22,FALSE),IF($G$10="UK",VLOOKUP(AP$5,Table10[],23,FALSE),VLOOKUP(AP$5,Table10[],24,FALSE))),"") ->  | AS22: =IF(AND($D$23="Base",AQ22<>"Not Compatible"),N7,"") -> 
B23: Base Unit / Wall Mount | D23: None | F23: =IF($D$23="None",1,0) -> 1 | G23: =IF($D$23="Wall",2,IF($D$23="Base",1,0)) -> 0 | I23: Supplemental Cabinet | J23: =IF(J$22>0,IF(J$22<=$N$6,$N$5,IF(J$22<=$M$6,$M$5,IF(J$22<=$L$6,$L$5,IF(J$22<=$K$6,$K$5,IF(J$22<=J$6,J$5,""))))),"None") -> None | K23: =IF(K$22>0,IF(K$22<=$N$6,$N$5,IF(K$22<=$M$6,$M$5,IF(K$22<=$L$6,$L$5,IF(K$22<=$K$6,$K$5,IF(K$22<=K$6,K$5,""))))),"None") -> None | L23: =IF(L$22>0,IF(L$22<=$N$6,$N$5,IF(L$22<=$M$6,$M$5,IF(L$22<=$L$6,$L$5,IF(L$22<=$K$6,$K$5,IF(L$22<=L$6,L$5,""))))),"None") -> Small | M23: =IF(M$22>0,IF(M$22<=$N$6,$N$5,IF(M$22<=$M$6,$M$5,IF(M$22<=$L$6,$L$5,IF(M$22<=$K$6,$K$5,IF(M$22<=M$6,M$5,""))))),"None") -> Small | N23: =IF(N$22>0,IF(N$22<=$N$6,$N$5,IF(N$22<=$M$6,$M$5,IF(N$22<=$L$6,$L$5,IF(N$22<=$K$6,$K$5,IF(N$22<=N$6,N$5,""))))),"None") -> None | R23: =IF(AND($F$24=1,$D$24="Yes"),"Device Bracket","") ->  | S23: =IF(AND($F$24=1,$D$24="Yes"),VLOOKUP($D$9,Table813[],29,FALSE),"") ->  | T23: =IF($R$23<>"",IF($G$10="EU",VLOOKUP($D$9,Table813[],30,FALSE),IF($G$10="UK",VLOOKUP($D$9,Table813[],31,FALSE),IF($G$10="NA",VLOOKUP($D$9,Table813[],32,FALSE),""))),"") ->  | U23: =IF(AND($D$24="Yes",$F$24=1),$D$12,"") ->  | X23: =IF(AND($F$24=1,$D$24="Yes"),"Device Bracket","") ->  | Y23: =IF(AND($F$24=1,$D$24="Yes"),VLOOKUP($D$9,Table813[],29,FALSE),"") ->  | Z23: =IF($X$23<>"",IF($G$10="EU",VLOOKUP($D$9,Table813[],30,FALSE),IF($G$10="UK",VLOOKUP($D$9,Table813[],31,FALSE),IF($G$10="NA",VLOOKUP($D$9,Table813[],32,FALSE),""))),"") ->  | AA23: =IF(AND($D$24="Yes",$F$24=1),$D$12,"") ->  | AD23: =IF(AND($F$24=1,$D$24="Yes"),"Device Bracket","") ->  | AE23: =IF(AND($F$24=1,$D$24="Yes"),VLOOKUP($D$9,Table813[],29,FALSE),"") ->  | AF23: =IF($AD$23<>"",IF($G$10="EU",VLOOKUP($D$9,Table813[],30,FALSE),IF($G$10="UK",VLOOKUP($D$9,Table813[],31,FALSE),IF($G$10="NA",VLOOKUP($D$9,Table813[],32,FALSE),""))),"") ->  | AG23: =IF(AND($D$24="Yes",$F$24=1),$D$12,"") ->  | AH23: =IFERROR(IF(AG23>0,AF23*AG23,""),"") ->  | AJ23: =IF(AND($F$24=1,$D$24="Yes"),"Device Bracket","") ->  | AK23: =IF(AND($F$24=1,$D$24="Yes"),VLOOKUP($D$9,Table813[],29,FALSE),"") ->  | AL23: =IF($AJ$23<>"",IF($G$10="EU",VLOOKUP($D$9,Table813[],30,FALSE),IF($G$10="UK",VLOOKUP($D$9,Table813[],31,FALSE),IF($G$10="NA",VLOOKUP($D$9,Table813[],32,FALSE),""))),"") ->  | AM23: =IF(AND($D$24="Yes",$F$24=1),$D$12,"") ->  | AN23: =IFERROR(IF(AM23>0,AL23*AM23,""),"") ->  | AP23: =IF(AND($F$24=1,$D$24="Yes"),"Device Bracket","") ->  | AQ23: =IF(AND($F$24=1,$D$24="Yes"),VLOOKUP($D$9,Table813[],29,FALSE),"") ->  | AR23: =IF($AP$23<>"",IF($G$10="EU",VLOOKUP($D$9,Table813[],30,FALSE),IF($G$10="UK",VLOOKUP($D$9,Table813[],31,FALSE),IF($G$10="NA",VLOOKUP($D$9,Table813[],32,FALSE),""))),"") ->  | AS23: =IF(AND($D$24="Yes",$F$24=1),$D$12,"") -> 
B24: =IF($F$24<>0, "Aux Bracket Required","Aux Bracket Not Required") -> Aux Bracket Not Required | D24: Yes | F24: =IF(VLOOKUP(D9,Table813[],29,FALSE)<>"",1,0) -> 0 | I24: Expansion Capacity | J24: =IF(J23="None",(J$6*J$21)-$D$5,(HLOOKUP(J23,$J$5:$N$6,2,FALSE))-J22) -> 0 | K24: =IF(K23="None",(K$6*K$21)-$D$5,(HLOOKUP(K23,$J$5:$N$6,2,FALSE))-K22) -> 0 | L24: =IF(L23="None",(L$6*L$21)-$D$5,(HLOOKUP(L23,$J$5:$N$6,2,FALSE))-L22) -> 0 | M24: =IF(M23="None",(M$6*M$21)-$D$5,(HLOOKUP(M23,$J$5:$N$6,2,FALSE))-M22) -> 10 | N24: =IF(N23="None",(N$6*N$21)-$D$5,(HLOOKUP(N23,$J$5:$N$6,2,FALSE))-N22) -> 0 | T24: Total | V24: =SUM(V8:V23) -> 16734.84 | Z24: Total | AB24: =SUM(AB8:AB23) -> 17955.52 | AF24: Total | AH24: =SUM(AH8:AH23) -> 20528.05 | AL24: Total | AN24: =SUM(AN8:AN23) -> 21542.96 | AR24: Total | AT24: =SUM(AT8:AT23) -> 21678.66
R25: =IF($G$10<>"NA",ROUND($J$7*Device_Cabinet_Data!$N$64,2),ROUND($J$7*Device_Cabinet_Data!$N$64*Device_Cabinet_Data!$B$55,2)) -> 0.52 | X25: =IF($G$10<>"NA",ROUND($K$7*Device_Cabinet_Data!$N$64,2),ROUND($K$7*Device_Cabinet_Data!$N$64*Device_Cabinet_Data!$B$55,2)) -> 1.05 | AD25: =IF($G$10<>"NA",ROUND($L$7*Device_Cabinet_Data!$N$64,2),ROUND($L$7*Device_Cabinet_Data!$N$64*Device_Cabinet_Data!$B$55,2)) -> 1.57 | AJ25: =IF($G$10<>"NA",ROUND($M$7*Device_Cabinet_Data!$N$64,2),ROUND($M$7*Device_Cabinet_Data!$N$64*Device_Cabinet_Data!$B$55,2)) -> 2.1 | AP25: =IF($G$10<>"NA",ROUND($N$7*Device_Cabinet_Data!$N$64,2),ROUND($N$7*Device_Cabinet_Data!$N$64*Device_Cabinet_Data!$B$55,2)) -> 2.62
R26: =IF($G$10="NA",ROUND(S$26*Device_Cabinet_Data!$B$55,2),ROUND(S$26,2)) -> 2.29 | S26: =IF($D$23="Yes",$J$7*VLOOKUP(R$5,Table13[],19,FALSE),$J$7*VLOOKUP(R$5,Table13[],15,FALSE)) -> 2.2944 | X26: =IF($G$10="NA",ROUND(Y$26*Device_Cabinet_Data!$B$55,2),ROUND(Y$26,2)) -> 2.68 | Y26: =IF($D$23="Yes",$K$7*VLOOKUP(X$5,Table13[],19,FALSE),$K$7*VLOOKUP(X$5,Table13[],15,FALSE)) -> 2.6768 | AD26: =IF($G$10="NA",ROUND(AE$26*Device_Cabinet_Data!$B$55,2),ROUND(AE$26,2)) -> 3.39 | AE26: =IF($D$23="Yes",$L$7*VLOOKUP(AD$5,Table13[],19,FALSE),$L$7*VLOOKUP(AD$5,Table13[],15,FALSE)) -> 3.3852 | AJ26: =IF($G$10="NA",ROUND(AK$26*Device_Cabinet_Data!$B$55,2),ROUND(AK$26,2)) -> 3.67 | AK26: =IF($D$23="Yes",$M$7*VLOOKUP(AJ$5,Table13[],19,FALSE),$M$7*VLOOKUP(AJ$5,Table13[],15,FALSE)) -> 3.6736 | AP26: =IF($G$10="NA",ROUND(AQ$26*Device_Cabinet_Data!$B$55,2),ROUND(AQ$26,2)) -> 3.54 | AQ26: =IF($D$23="Yes",$N$7*VLOOKUP(AP$5,Table13[],19,FALSE),$N$7*VLOOKUP(AP$5,Table13[],15,FALSE)) -> 3.542
Z38: r4

Sheet Sheet1 (hidden)
B3: Select Your Device | D3: D9 | E3: Same | F3: D9 | G3: Select Your Device
B4: Select Your Country | D4: D10 | E4: Same | F4: D10 | G4: Select Your Country
B5: Cradles with Battery Charger | D5: D11 | E5: Same | F5: D11 | G5: Cradles with Battery Charger
B6: Qty of Cradles to be housed | D6: D12 | E6: Same | F6: D12 | G6: Qty of Cradles to be housed
B7: Use CC6000 | D7: D13
B8: Cabinets per CC6000 | D8: D14 | F8: D13 | G8: AMS Compatible
B9: CC6000 Mount | D9: D15 | F9: D14 | G9: Access Management System
B10: TC8xxx Vertical Bracket | D10: D16 | F10: D15 | G10: AMS License Duration
B11: Stadium Compatible | D11: D17 | F11: D16 | G11: Use CC6000
B12: Use Stadium Shelves | D12: D18 | F12: D17 | G12: Cabinets per CC6000
B13: Cradle Lock Compatible | D13: D19 | F13: D18 | G13: CC6000 Mount
B14: With Cradle Locks | D14: D20
B15: Cabinet Base | D15: D21 | F15: D19 | G15: Stadium Compatible
B16: AMS Compatible | D16: D22 | F16: D20 | G16: Use Stadium Shelves
B17: Access Management System | D17: D23
B18: AMS License Duration | D18: D24 | F18: D21 | G18: Cradle Lock Compatible
F19: D22 | G19: With Cradle Locks
F21: D23 | G21: Cabinet Base
F23: D24 | G23: TC8xxx Vertical Bracket
